Departmental Area,Entity,Payment Date,Expense type,Expense Area,Supplier Name,Payment Reference, Invoice Distribution Amount ,Description,Supplier Type,Expenditure Type,,
UK Statistics Family,Office for National Statistics,01/09/2021,"ICT Outsourcing, Maintenance And Support",IT Operations,Crown Hosting Data Centres Limited,208969,193.48,Information Management Services,SME,Programme Expenditure,,
UK Statistics Family,Office for National Statistics,01/09/2021,Telecoms,IT Operations,Crown Hosting Data Centres Limited,208969,"2,580.00",Information Management Services,SME,Programme Expenditure,,
UK Statistics Family,Office for National Statistics,01/09/2021,Hosting,IT Operations,Crown Hosting Data Centres Limited,208969,"73,992.41",Information Management Services,SME,Programme Expenditure,,
UK Statistics Family,Office for National Statistics,01/09/2021,Exp - Purchase Of Goods/Services - IT Contractual Services,Tech Delivery Data As A Platform,Kainos,208970,"28,883.61",Information Management Services,Large,Programme Expenditure,,
UK Statistics Family,Office for National Statistics,01/09/2021,Hosting,Tech Delivery Data As A Platform,Kainos,208970,"3,352.21",Information Management Services,Large,Programme Expenditure,,
UK Statistics Family,Office for National Statistics,01/09/2021,Exp - Purchase Of Goods/Services - IT Contractual Services,Strategy And Architecture,Empiric Solutions Limited,208971,"59,475.00",Information Management Services,Large,Programme Expenditure,,
UK Statistics Family,Office for National Statistics,01/09/2021,Exp - Purchase Of Goods/Services - IT Contractual Services,Office Of Chief Data And Information,Scc,208974,"25,999.68",Information Management Services,Large,Programme Expenditure,,
UK Statistics Family,Office for National Statistics,01/09/2021,Specialist User Software And Hardware,CDIO UNGP,Softcat,208977,"315,774.28",Software Licenses,SME,Programme Expenditure,,
UK Statistics Family,Office for National Statistics,01/09/2021,Exp - Purchase Of Goods/Services - Contractors,Digital Publishing,Certes Computing Ltd,208979,"11,689.13",Information Management Services,SME,Programme Expenditure,,
UK Statistics Family,Office for National Statistics,01/09/2021,Exp - Purchase Of Goods/Services - Contractors,Data Architecture,Certes Computing Ltd,208979,"14,398.56",Information Management Services,SME,Programme Expenditure,,
UK Statistics Family,Office for National Statistics,01/09/2021,Exp - Purchase Of Goods/Services - Contractors,Data Architecture,Certes Computing Ltd,208979,"2,159.78",Information Management Services,SME,Programme Expenditure,,
UK Statistics Family,Office for National Statistics,01/09/2021,Exp - Purchase Of Goods/Services - Contractors,Strategy And Architecture,Certes Computing Ltd,208979,"20,250.00",Information Management Services,SME,Programme Expenditure,,
UK Statistics Family,Office for National Statistics,01/09/2021,Exp - Purchase Of Goods/Services - Contractors,Tech Delivery Legacy Sp,Certes Computing Ltd,208979,"23,346.36",Information Management Services,SME,Programme Expenditure,,
UK Statistics Family,Office for National Statistics,01/09/2021,Exp - Purchase Of Goods/Services - Contractors,Tech Delivery Data As A Platform,Certes Computing Ltd,208979,"8,006.28",Information Management Services,SME,Programme Expenditure,,
UK Statistics Family,Office for National Statistics,01/09/2021,Exp - Purchase Of Goods/Services - Contractors Overtime,IT Operations,Certes Computing Ltd,208979,"11,593.69",Information Management Services,SME,Programme Expenditure,,
UK Statistics Family,Office for National Statistics,01/09/2021,Exp - Purchase Of Goods/Services - Contractors,Digital Delivery,Certes Computing Ltd,208979,"15,115.20",Information Management Services,SME,Programme Expenditure,,
UK Statistics Family,Office for National Statistics,01/09/2021,Exp - Purchase Of Goods/Services - Contractors,Digital Delivery,Certes Computing Ltd,208979,"4,765.25",Information Management Services,SME,Programme Expenditure,,
UK Statistics Family,Office for National Statistics,01/09/2021,Exp - Purchase Of Goods/Services - Contractors,Digital Delivery,Certes Computing Ltd,208979,"24,979.68",Information Management Services,SME,Programme Expenditure,,
UK Statistics Family,Office for National Statistics,01/09/2021,Software Licences At Cost - Additions,IT Operations,Computacenter (Uk) Limited,208984,"1,001,700.00",Software Licenses,Large,Programme Expenditure,,
UK Statistics Family,Office for National Statistics,01/09/2021,Print & Post,Social Survey Transformation Newport,APS Group,208986,"63,671.41",Print and Post Services,Large,Programme Expenditure,,
UK Statistics Family,Office for National Statistics,01/09/2021,Exp - Purchase Of Goods/Services - Contractors,Business Architecture,Talent International,208990,"16,008.00",Information Management Services,SME,Programme Expenditure,,
UK Statistics Family,Office for National Statistics,01/09/2021,Exp - Purchase Of Goods/Services - Contractors,INTEGRATED DATA STRATEGY AND DELIVERY,Talent International,208990,"13,800.00",Information Management Services,SME,Programme Expenditure,,
UK Statistics Family,Office for National Statistics,01/09/2021,Exp - Short-Term Contract & Agency Staff - Full Cost,Data Architecture,Talent International,208990,737.48,Information Management Services,SME,Programme Expenditure,,
UK Statistics Family,Office for National Statistics,01/09/2021,Exp - Purchase Of Goods/Services - Contractors,Business Architecture,Parity Resources Limited,208995,"4,648.63",Information Management Services,Large,Programme Expenditure,,
UK Statistics Family,Office for National Statistics,01/09/2021,Exp - Purchase Of Goods/Services - Contractors,Business Architecture,Parity Resources Limited,208995,"2,249.35",Information Management Services,Large,Programme Expenditure,,
UK Statistics Family,Office for National Statistics,01/09/2021,Exp - Purchase Of Goods/Services - Contractors,Covid Infection Survey,Parity Resources Limited,208995,"2,993.80",Information Management Services,Large,Programme Expenditure,,
UK Statistics Family,Office for National Statistics,01/09/2021,Exp - Short-Term Contract & Agency Staff - Full Cost,Data Architecture,Parity Resources Limited,208995,"2,197.80",Information Management Services,Large,Programme Expenditure,,
UK Statistics Family,Office for National Statistics,01/09/2021,Exp - Purchase Of Goods/Services - Contractors,Data Architecture,Parity Resources Limited,208995,"10,417.56",Information Management Services,Large,Programme Expenditure,,
UK Statistics Family,Office for National Statistics,01/09/2021,Exp - Purchase Of Goods/Services - Contractors,Digital Delivery,Parity Resources Limited,208995,"3,430.50",Information Management Services,Large,Programme Expenditure,,
UK Statistics Family,Office for National Statistics,02/09/2021,Exp - Purchase Of Goods/Services - Contractors,Testing,Concept Information Technology Ltd T/A Concept Resourcing,209182,"11,385.00",Information Management Services,Large,Programme Expenditure,,
UK Statistics Family,Office for National Statistics,02/09/2021,Exp - Purchase Of Goods/Services - Contractors,CLOUD ARCHITECTURE,Concept Information Technology Ltd T/A Concept Resourcing,209182,"12,402.00",Information Management Services,Large,Programme Expenditure,,
UK Statistics Family,Office for National Statistics,02/09/2021,Exp - Short-Term Contract & Agency Staff - Full Cost,Social Surveys Division,Concept Information Technology Ltd T/A Concept Resourcing,209182,"8,663.94",Information Management Services,Large,Programme Expenditure,,
UK Statistics Family,Office for National Statistics,02/09/2021,Telecoms,IT Operations,Bt Global Services,209184,"26,727.24",Telecommunications,Large,Programme Expenditure,,
UK Statistics Family,Office for National Statistics,02/09/2021,Exp - Purchase Of Goods/Services - Contractors,Data Architecture,Certes Computing Ltd,209188,"14,398.56",Information Management Services,SME,Programme Expenditure,,
UK Statistics Family,Office for National Statistics,02/09/2021,Exp - Purchase Of Goods/Services - Contractors,IT Applications,Certes Computing Ltd,209188,"17,613.90",Information Management Services,SME,Programme Expenditure,,
UK Statistics Family,Office for National Statistics,02/09/2021,Exp - Purchase Of Goods/Services - Contractors,Digital Delivery,Certes Computing Ltd,209188,"12,777.66",Information Management Services,SME,Programme Expenditure,,
UK Statistics Family,Office for National Statistics,02/09/2021,Exp - Purchase Of Goods/Services - Contractors,Digital Delivery,Certes Computing Ltd,209188,"16,813.20",Information Management Services,SME,Programme Expenditure,,
UK Statistics Family,Office for National Statistics,02/09/2021,Exp - Purchase Of Goods/Services - Contractors,Business Architecture,La International,209189,"8,636.52",Information Management Services,SME,Programme Expenditure,,
UK Statistics Family,Office for National Statistics,02/09/2021,Exp - Purchase Of Goods/Services - Contractors,Testing,La International,209189,"16,788.16",Information Management Services,SME,Programme Expenditure,,
UK Statistics Family,Office for National Statistics,02/09/2021,Exp - Purchase Of Goods/Services - Contractors,Testing,La International,209189,"5,206.25",Information Management Services,SME,Programme Expenditure,,
UK Statistics Family,Office for National Statistics,02/09/2021,Exp - Purchase Of Goods/Services - Contractors,HALE,La International,209189,"2,413.75",Information Management Services,SME,Programme Expenditure,,
UK Statistics Family,Office for National Statistics,02/09/2021,Exp - Purchase Of Goods/Services - Contractors,Sustainability And Inequalities,La International,209189,"3,156.90",Information Management Services,SME,Programme Expenditure,,
UK Statistics Family,Office for National Statistics,02/09/2021,Exp - Purchase Of Goods/Services - Contractors,CLOUD ARCHITECTURE,La International,209189,"4,165.02",Information Management Services,SME,Programme Expenditure,,
UK Statistics Family,Office for National Statistics,02/09/2021,Exp - Purchase Of Goods/Services - Contractors,Tech Delivery Legacy Sp,La International,209189,"10,572.66",Information Management Services,SME,Programme Expenditure,,
UK Statistics Family,Office for National Statistics,02/09/2021,Exp - Purchase Of Goods/Services - Contractors,Tech Delivery Data As A Platform,La International,209189,"3,203.88",Information Management Services,SME,Programme Expenditure,,
UK Statistics Family,Office for National Statistics,02/09/2021,Exp - Purchase Of Goods/Services - Contractors,IT Applications,La International,209189,"28,847.57",Information Management Services,SME,Programme Expenditure,,
UK Statistics Family,Office for National Statistics,02/09/2021,Exp - Purchase Of Goods/Services - Contractors,Business Architecture,Malikshaw Interim & Executive,209196,"18,180.00",Information Management Services,SME,Programme Expenditure,,
UK Statistics Family,Office for National Statistics,02/09/2021,Exp - Purchase Of Goods/Services - Contractors,Digital Delivery,Malikshaw Interim & Executive,209196,"15,840.00",Information Management Services,SME,Programme Expenditure,,
UK Statistics Family,Office for National Statistics,02/09/2021,Training & Development,Learning And Capability,Insights Learning and Development Limited,209197,"25,800.00",Training and Educational Services,SME,Programme Expenditure,,
UK Statistics Family,Office for National Statistics,02/09/2021,EXP - PURCHASE OF GOODS/SERVICES -  NON IT CONTRACTUAL PAYMENTS,Covid Infection Survey,HH Associates Ltd,209198,"100,437.33",Print and Post Services,SME,Programme Expenditure,,
UK Statistics Family,Office for National Statistics,02/09/2021,"ICT Outsourcing, Maintenance And Support",IT Operations,Bloom Procurement Services Ltd,209199,"66,084.55",Consultancy,Large,Programme Expenditure,,
UK Statistics Family,Office for National Statistics,02/09/2021,Exp - Purchase Of Goods/Services - IT Contractual Services,Tech Delivery Next Gen IT And Infrastructure,Diegesis Limited,209203,"29,352.00",Information Management Services,Large,Programme Expenditure,,
UK Statistics Family,Office for National Statistics,02/09/2021,Other Goods And Services,Recruitment ,Cabinet Office,209213,403.2,Fast Stream Programme Charges,Large,Programme Expenditure,,
UK Statistics Family,Office for National Statistics,02/09/2021,Exp - Seconded UK Staff - Basic Salary,FAST STREAM RECHARGES - CABINET OFFICE,Cabinet Office,209213,"57,317.00",Fast Stream Programme Charges,Large,Programme Expenditure,,
UK Statistics Family,Office for National Statistics,03/09/2021,Exp - Purchase Of Goods/Services - Contractors,Business Architecture,Certes Computing Ltd,209220,"10,760.40",Information Management Services,SME,Programme Expenditure,,
UK Statistics Family,Office for National Statistics,03/09/2021,Exp - Purchase Of Goods/Services - Contractors,Testing,Certes Computing Ltd,209220,"22,289.28",Information Management Services,SME,Programme Expenditure,,
UK Statistics Family,Office for National Statistics,03/09/2021,Exp - Purchase Of Goods/Services - Contractors,Consultancy Management,Certes Computing Ltd,209220,"12,958.70",Information Management Services,SME,Programme Expenditure,,
UK Statistics Family,Office for National Statistics,03/09/2021,Exp - Purchase Of Goods/Services - Contractors,Digital Delivery,Certes Computing Ltd,209220,"12,009.42",Information Management Services,SME,Programme Expenditure,,
UK Statistics Family,Office for National Statistics,06/09/2021,Surveys,International Trade And Transactions,Mango Solutions,209361,"14,280.00",Information Management Services,SME,Programme Expenditure,,
UK Statistics Family,Office for National Statistics,06/09/2021,Surveys,International Trade And Transactions,Mango Solutions,209361,"31,824.00",Information Management Services,SME,Programme Expenditure,,
UK Statistics Family,Office for National Statistics,06/09/2021,Exp - Purchase Of Goods/Services - Contractors,Business Architecture,Talent International,209364,"12,528.00",Information Management Services,SME,Programme Expenditure,,
UK Statistics Family,Office for National Statistics,06/09/2021,Exp - Short-Term Contract & Agency Staff - Full Cost,Data Architecture,Talent International,209364,601.7,Information Management Services,SME,Programme Expenditure,,
UK Statistics Family,Office for National Statistics,06/09/2021,Exp - Purchase Of Goods/Services - Contractors,Tech Delivery Data As A Platform,Talent International,209364,"14,399.76",Information Management Services,SME,Programme Expenditure,,
UK Statistics Family,Office for National Statistics,06/09/2021,Exp - Purchase Of Goods/Services - Contractors,Business Architecture,LA FOSSE ASSOCIATES LIMITED,209365,"57,545.00",Information Management Services,Large,Programme Expenditure,,
UK Statistics Family,Office for National Statistics,06/09/2021,Exp - Purchase Of Goods/Services - Contractors,Business Architecture,LA FOSSE ASSOCIATES LIMITED,209365,"14,400.00",Information Management Services,Large,Programme Expenditure,,
UK Statistics Family,Office for National Statistics,06/09/2021,Exp - Purchase Of Goods/Services - Contractors,Business Architecture,LA FOSSE ASSOCIATES LIMITED,209365,"14,400.00",Information Management Services,Large,Programme Expenditure,,
UK Statistics Family,Office for National Statistics,06/09/2021,Exp - Purchase Of Goods/Services - Contractors,Business Architecture,LA FOSSE ASSOCIATES LIMITED,209365,"10,450.00",Information Management Services,Large,Programme Expenditure,,
UK Statistics Family,Office for National Statistics,06/09/2021,Exp - Purchase Of Goods/Services - Contractors,Operations,LA FOSSE ASSOCIATES LIMITED,209365,"9,900.00",Information Management Services,Large,Programme Expenditure,,
UK Statistics Family,Office for National Statistics,06/09/2021,Exp - Purchase Of Goods/Services - Contractors,Consultancy Management,LA FOSSE ASSOCIATES LIMITED,209365,"22,500.00",Information Management Services,Large,Programme Expenditure,,
UK Statistics Family,Office for National Statistics,06/09/2021,Exp - Purchase Of Goods/Services - Contractors,WIDER SURVEILLANCE STUDIES,LA FOSSE ASSOCIATES LIMITED,209365,"8,400.00",Information Management Services,Large,Programme Expenditure,,
UK Statistics Family,Office for National Statistics,06/09/2021,Exp - Purchase Of Goods/Services - Contractors,Digital Publishing,LA FOSSE ASSOCIATES LIMITED,209365,"8,700.00",Information Management Services,Large,Programme Expenditure,,
UK Statistics Family,Office for National Statistics,06/09/2021,Exp - Purchase Of Goods/Services - Contractors,CLOUD ARCHITECTURE,LA FOSSE ASSOCIATES LIMITED,209365,"14,400.00",Information Management Services,Large,Programme Expenditure,,
UK Statistics Family,Office for National Statistics,06/09/2021,Exp - Purchase Of Goods/Services - Contractors,Tech Delivery Legacy Sp,LA FOSSE ASSOCIATES LIMITED,209365,"4,500.00",Information Management Services,Large,Programme Expenditure,,
UK Statistics Family,Office for National Statistics,06/09/2021,Exp - Purchase Of Goods/Services - Contractors,Business Architecture,Parity Resources Limited,209366,"4,648.63",Information Management Services,Large,Programme Expenditure,,
UK Statistics Family,Office for National Statistics,06/09/2021,Exp - Purchase Of Goods/Services - Contractors,Business Architecture,Parity Resources Limited,209366,"2,249.35",Information Management Services,Large,Programme Expenditure,,
UK Statistics Family,Office for National Statistics,06/09/2021,Exp - Short-Term Contract & Agency Staff - Full Cost,Census CCS Data Collection,Parity Resources Limited,209366,785.88,Information Management Services,Large,Programme Expenditure,,
UK Statistics Family,Office for National Statistics,06/09/2021,Exp - Short-Term Contract & Agency Staff - Full Cost,Census CCS Data Collection,Parity Resources Limited,209366,743.4,Information Management Services,Large,Programme Expenditure,,
UK Statistics Family,Office for National Statistics,06/09/2021,Exp - Purchase Of Goods/Services - Contractors,Programme Delivery,Parity Resources Limited,209366,"3,310.50",Information Management Services,Large,Programme Expenditure,,
UK Statistics Family,Office for National Statistics,06/09/2021,Exp - Purchase Of Goods/Services - Contractors,Covid Infection Survey,Parity Resources Limited,209366,"2,993.80",Information Management Services,Large,Programme Expenditure,,
UK Statistics Family,Office for National Statistics,06/09/2021,Exp - Short-Term Contract & Agency Staff - Full Cost,Recruitment ,Parity Resources Limited,209366,732.6,Information Management Services,Large,Programme Expenditure,,
UK Statistics Family,Office for National Statistics,06/09/2021,Exp - Short-Term Contract & Agency Staff - Full Cost,Recruitment ,Parity Resources Limited,209366,"1,465.20",Information Management Services,Large,Programme Expenditure,,
UK Statistics Family,Office for National Statistics,06/09/2021,Exp - Purchase Of Goods/Services - Contractors,INTEGRATED DATA STRATEGY AND DELIVERY,Parity Resources Limited,209366,"3,246.30",Information Management Services,Large,Programme Expenditure,,
UK Statistics Family,Office for National Statistics,06/09/2021,Exp - Short-Term Contract & Agency Staff - Full Cost,Data Architecture,Parity Resources Limited,209366,"2,197.80",Information Management Services,Large,Programme Expenditure,,
UK Statistics Family,Office for National Statistics,06/09/2021,Exp - Purchase Of Goods/Services - Contractors,Data Architecture,Parity Resources Limited,209366,"2,874.05",Information Management Services,Large,Programme Expenditure,,
UK Statistics Family,Office for National Statistics,06/09/2021,Exp - Purchase Of Goods/Services - Contractors,Digital Delivery,Parity Resources Limited,209366,"3,430.50",Information Management Services,Large,Programme Expenditure,,
UK Statistics Family,Office for National Statistics,08/09/2021,Exp - Purchase Of Goods/Services - Contractors,Business Architecture,Talent International,209492,"16,279.77",Information Management Services,SME,Programme Expenditure,,
UK Statistics Family,Office for National Statistics,08/09/2021,Exp - Short-Term Contract & Agency Staff - Full Cost,Census CCS Data Collection,Talent International,209492,"7,584.01",Information Management Services,SME,Programme Expenditure,,
UK Statistics Family,Office for National Statistics,08/09/2021,Exp - Purchase Of Goods/Services - Contractors,Covid Infection Survey,Talent International,209492,"13,000.00",Information Management Services,SME,Programme Expenditure,,
UK Statistics Family,Office for National Statistics,08/09/2021,Exp - Purchase Of Goods/Services - Contractors,International Trade And Transactions,Talent International,209492,"11,088.00",Information Management Services,SME,Programme Expenditure,,
UK Statistics Family,Office for National Statistics,08/09/2021,Exp - Purchase Of Goods And Services Consultants,Business Architecture Transformation And Statistical Strategy,Talent International,209492,"14,400.00",Information Management Services,SME,Programme Expenditure,,
UK Statistics Family,Office for National Statistics,08/09/2021,Exp - Purchase Of Goods/Services - Contractors,Finance,Talent International,209492,"12,540.00",Information Management Services,SME,Programme Expenditure,,
UK Statistics Family,Office for National Statistics,08/09/2021,Exp - Purchase Of Goods/Services - Contractors,CDIO UNGP,Talent International,209492,"16,440.00",Information Management Services,SME,Programme Expenditure,,
UK Statistics Family,Office for National Statistics,08/09/2021,Exp - Purchase Of Goods/Services - Contractors,Strategy And Architecture,Talent International,209492,"15,600.00",Information Management Services,SME,Programme Expenditure,,
UK Statistics Family,Office for National Statistics,08/09/2021,Exp - Purchase Of Goods/Services - Contractors,Digital Delivery,Talent International,209492,"10,063.20",Information Management Services,SME,Programme Expenditure,,
UK Statistics Family,Office for National Statistics,08/09/2021,Exp - Purchase Of Goods/Services - Contractors,PPP Operations,Talent International,209492,"14,400.00",Information Management Services,SME,Programme Expenditure,,
UK Statistics Family,Office for National Statistics,08/09/2021,Exp - Purchase Of Goods And Services Consultants,Finance,iCoTech Services,209496,"62,078.40",Information Management Services,SME,Programme Expenditure,,
UK Statistics Family,Office for National Statistics,08/09/2021,Specialist User Software And Hardware,Learning And Capability,SKILLSOFT UK LIMITED,209501,"139,913.98",Information Management Services,Large,Programme Expenditure,,
UK Statistics Family,Office for National Statistics,08/09/2021,Exp - Short-Term Contract & Agency Staff - Full Cost,Census CCS Data Collection,Parity Resources Limited,209502,"2,467.92",Information Management Services,Large,Programme Expenditure,,
UK Statistics Family,Office for National Statistics,08/09/2021,Exp - Purchase Of Goods/Services - Contractors,Digital Publishing,Parity Resources Limited,209502,"10,470.60",Information Management Services,Large,Programme Expenditure,,
UK Statistics Family,Office for National Statistics,08/09/2021,Exp - Purchase Of Goods/Services - Contractors,Portfolio Delivery,Parity Resources Limited,209502,"12,465.99",Information Management Services,Large,Programme Expenditure,,
UK Statistics Family,Office for National Statistics,08/09/2021,Exp - Purchase Of Goods/Services - Contractors,Commercial Services,Parity Resources Limited,209502,"35,628.48",Information Management Services,Large,Programme Expenditure,,
UK Statistics Family,Office for National Statistics,08/09/2021,Surveys,Public Sector And Households,Michael Davies,209503,"36,000.00",Consultancy,SME,Programme Expenditure,,
UK Statistics Family,Office for National Statistics,08/09/2021,Surveys,Prices Division,Kantar UK Ltd,209504,"207,757.00",Statistical Services,Large,Programme Expenditure,,
UK Statistics Family,Office for National Statistics,08/09/2021,Marketing & Media,Stakeholder Engagement And Comms,M&C Saatchi UK Ltd,209505,"42,741.10",Marketing Services,Large,Programme Expenditure,,
UK Statistics Family,Office for National Statistics,09/09/2021,Exp - Purchase Of Goods/Services - Contractors,Testing,Malikshaw Interim & Executive,209708,"6,000.00",Information Management Services,SME,Programme Expenditure,,
UK Statistics Family,Office for National Statistics,09/09/2021,Exp - Short-Term Contract & Agency Staff - Full Cost,Census CCS Data Collection,Malikshaw Interim & Executive,209708,"11,953.54",Information Management Services,SME,Programme Expenditure,,
UK Statistics Family,Office for National Statistics,09/09/2021,Exp - Short-Term Contract & Agency Staff - Full Cost,Data Architecture,Malikshaw Interim & Executive,209708,"3,513.29",Information Management Services,SME,Programme Expenditure,,
UK Statistics Family,Office for National Statistics,09/09/2021,Exp - Purchase Of Goods/Services - Contractors,Data Architecture,Malikshaw Interim & Executive,209708,"12,240.00",Information Management Services,SME,Programme Expenditure,,
UK Statistics Family,Office for National Statistics,09/09/2021,Exp - Purchase Of Goods/Services - Contractors,Strategy And Architecture,Malikshaw Interim & Executive,209708,"7,219.55",Information Management Services,SME,Programme Expenditure,,
UK Statistics Family,Office for National Statistics,09/09/2021,Exp - Short-Term Contract & Agency Staff - Full Cost,Interviewer Management TU,Malikshaw Interim & Executive,209708,732.6,Information Management Services,SME,Programme Expenditure,,
UK Statistics Family,Office for National Statistics,09/09/2021,Exp - Purchase Of Goods/Services - Contractors,Social Surveys Division,Malikshaw Interim & Executive,209708,"7,735.14",Information Management Services,SME,Programme Expenditure,,
UK Statistics Family,Office for National Statistics,09/09/2021,Exp - Purchase Of Goods/Services - IT Contractual Services,IT Operations,Methods Business & Digital Technology Ltd,209711,"106,752.00",Information Management Services,Large,Programme Expenditure,,
UK Statistics Family,Office for National Statistics,09/09/2021,Exp - Short-Term Contract & Agency Staff - Full Cost,Census CCS Data Collection,Talent International,209712,"38,173.70",Information Management Services,SME,Programme Expenditure,,
UK Statistics Family,Office for National Statistics,09/09/2021,Exp - Purchase Of Goods/Services - Contractors,Covid Infection Survey,Talent International,209712,"5,990.00",Information Management Services,SME,Programme Expenditure,,
UK Statistics Family,Office for National Statistics,09/09/2021,Exp - Purchase Of Goods/Services - Contractors,Data Architecture,Talent International,209712,"21,600.00",Information Management Services,SME,Programme Expenditure,,
UK Statistics Family,Office for National Statistics,09/09/2021,Exp - Purchase Of Goods/Services - Contractors,Data Architecture,Talent International,209712,"26,138.40",Information Management Services,SME,Programme Expenditure,,
UK Statistics Family,Office for National Statistics,09/09/2021,Exp - Purchase Of Goods/Services - IT Contractual Services,Tech Delivery Legacy Sp,Talent International,209712,"14,039.77",Information Management Services,SME,Programme Expenditure,,
UK Statistics Family,Office for National Statistics,09/09/2021,EXP - PURCHASE OF GOODS/SERVICES -  NON IT CONTRACTUAL PAYMENTS,Divisional Management,Talent International,209712,"1,485.96",Information Management Services,SME,Programme Expenditure,,
UK Statistics Family,Office for National Statistics,09/09/2021,Exp - Purchase Of Goods/Services - Incentive Payments,Survey Management,Sodexo Motivation Solutions U.K. ltd,209713,"23,670.80",Survey Response Incentive Vouchers,Large,Programme Expenditure,,
UK Statistics Family,Office for National Statistics,09/09/2021,Exp - Purchase Of Goods/Services - Incentive Payments,Survey Management,Sodexo Motivation Solutions U.K. ltd,209713,"4,391.70",Survey Response Incentive Vouchers,Large,Programme Expenditure,,
UK Statistics Family,Office for National Statistics,09/09/2021,Exp - Purchase Of Goods/Services - Incentive Payments,Survey Management,Sodexo Motivation Solutions U.K. ltd,209713,"3,128.47",Survey Response Incentive Vouchers,Large,Programme Expenditure,,
UK Statistics Family,Office for National Statistics,09/09/2021,Exp - Purchase Of Goods/Services - Incentive Payments,Survey Management,Sodexo Motivation Solutions U.K. ltd,209713,"2,467.25",Survey Response Incentive Vouchers,Large,Programme Expenditure,,
UK Statistics Family,Office for National Statistics,09/09/2021,Exp - Purchase Of Goods/Services - Incentive Payments,Survey Management,Sodexo Motivation Solutions U.K. ltd,209713,"95,758.92",Survey Response Incentive Vouchers,Large,Programme Expenditure,,
UK Statistics Family,Office for National Statistics,09/09/2021,Exp - Purchase Of Goods/Services - Incentive Payments,Social Survey Transformation Newport,Sodexo Motivation Solutions U.K. ltd,209713,"163,529.33",Survey Response Incentive Vouchers,Large,Programme Expenditure,,
UK Statistics Family,Office for National Statistics,09/09/2021,Exp - Purchase Of Goods/Services - Contractors,Data Architecture,LA FOSSE ASSOCIATES LIMITED,209714,"28,155.00",Information Management Services,Large,Programme Expenditure,,
UK Statistics Family,Office for National Statistics,09/09/2021,Exp - Purchase Of Goods/Services - Contractors,Business Architecture,Parity Resources Limited,209718,"4,648.63",Information Management Services,Large,Programme Expenditure,,
UK Statistics Family,Office for National Statistics,09/09/2021,Exp - Purchase Of Goods/Services - Contractors,Business Architecture,Parity Resources Limited,209718,"2,249.35",Information Management Services,Large,Programme Expenditure,,
UK Statistics Family,Office for National Statistics,09/09/2021,Exp - Purchase Of Goods/Services - Contractors,Testing,Parity Resources Limited,209718,"16,695.36",Information Management Services,Large,Programme Expenditure,,
UK Statistics Family,Office for National Statistics,09/09/2021,Exp - Short-Term Contract & Agency Staff - Full Cost,Census CCS Data Collection,Parity Resources Limited,209718,615.96,Information Management Services,Large,Programme Expenditure,,
UK Statistics Family,Office for National Statistics,09/09/2021,Exp - Purchase Of Goods/Services - Contractors,Programme Delivery,Parity Resources Limited,209718,"3,310.50",Information Management Services,Large,Programme Expenditure,,
UK Statistics Family,Office for National Statistics,09/09/2021,Exp - Purchase Of Goods/Services - Contractors,Covid Infection Survey,Parity Resources Limited,209718,"2,993.80",Information Management Services,Large,Programme Expenditure,,
UK Statistics Family,Office for National Statistics,09/09/2021,Exp - Purchase Of Goods/Services - Contractors,International Trade And Transactions,Parity Resources Limited,209718,"12,175.20",Information Management Services,Large,Programme Expenditure,,
UK Statistics Family,Office for National Statistics,09/09/2021,Exp - Purchase Of Goods/Services - Contractors,Analysis Microdata And Engagement,Parity Resources Limited,209718,"1,985.65",Information Management Services,Large,Programme Expenditure,,
UK Statistics Family,Office for National Statistics,09/09/2021,Exp - Short-Term Contract & Agency Staff - Full Cost,Business Architecture Transformation And Statistical Strategy,Parity Resources Limited,209718,808.08,Information Management Services,Large,Programme Expenditure,,
UK Statistics Family,Office for National Statistics,09/09/2021,Exp - Short-Term Contract & Agency Staff - Full Cost,Recruitment ,Parity Resources Limited,209718,732.6,Information Management Services,Large,Programme Expenditure,,
UK Statistics Family,Office for National Statistics,09/09/2021,Exp - Short-Term Contract & Agency Staff - Full Cost,Recruitment ,Parity Resources Limited,209718,732.6,Information Management Services,Large,Programme Expenditure,,
UK Statistics Family,Office for National Statistics,09/09/2021,Exp - Purchase Of Goods/Services - Contractors,Security Advisory,Parity Resources Limited,209718,"7,689.60",Information Management Services,Large,Programme Expenditure,,
UK Statistics Family,Office for National Statistics,09/09/2021,Exp - Short-Term Contract & Agency Staff - Full Cost,Data Architecture,Parity Resources Limited,209718,"1,465.20",Information Management Services,Large,Programme Expenditure,,
UK Statistics Family,Office for National Statistics,09/09/2021,Exp - Purchase Of Goods/Services - Contractors,Data Architecture,Parity Resources Limited,209718,"3,592.56",Information Management Services,Large,Programme Expenditure,,
UK Statistics Family,Office for National Statistics,09/09/2021,Exp - Purchase Of Goods/Services - Contractors,IT Applications,Parity Resources Limited,209718,"9,900.36",Information Management Services,Large,Programme Expenditure,,
UK Statistics Family,Office for National Statistics,09/09/2021,Exp - Purchase Of Goods/Services - Contractors,Social Surveys Division,Parity Resources Limited,209718,"7,200.00",Information Management Services,Large,Programme Expenditure,,
UK Statistics Family,Office for National Statistics,09/09/2021,Exp - Purchase Of Goods/Services - Contractors,Data Architecture,Empiric Solutions Limited,209720,"11,310.00",Information Management Services,Large,Programme Expenditure,,
UK Statistics Family,Office for National Statistics,09/09/2021,Exp - Purchase Of Goods/Services - Contractors,Data Architecture,Empiric Solutions Limited,209720,"15,000.00",Information Management Services,Large,Programme Expenditure,,
UK Statistics Family,Office for National Statistics,09/09/2021,Exp - Short-Term Contract & Agency Staff - Full Cost,Stakeholder Engagement And Comms,Concept Information Technology Ltd T/A Concept Resourcing,209721,"6,723.48",Information Management Services,Large,Programme Expenditure,,
UK Statistics Family,Office for National Statistics,09/09/2021,Exp - Purchase Of Goods/Services - Contractors,Business Architecture,Concept Information Technology Ltd T/A Concept Resourcing,209721,"17,197.06",Information Management Services,Large,Programme Expenditure,,
UK Statistics Family,Office for National Statistics,09/09/2021,Exp - Short-Term Contract & Agency Staff - Full Cost,Senior Management,Concept Information Technology Ltd T/A Concept Resourcing,209721,"1,854.31",Information Management Services,Large,Programme Expenditure,,
UK Statistics Family,Office for National Statistics,09/09/2021,Exp - Short-Term Contract & Agency Staff - Full Cost,Programme Other,Concept Information Technology Ltd T/A Concept Resourcing,209721,742.98,Information Management Services,Large,Programme Expenditure,,
UK Statistics Family,Office for National Statistics,09/09/2021,Exp - Short-Term Contract & Agency Staff - Full Cost,Covid Infection Survey,Concept Information Technology Ltd T/A Concept Resourcing,209721,"4,132.51",Information Management Services,Large,Programme Expenditure,,
UK Statistics Family,Office for National Statistics,09/09/2021,Exp - Short-Term Contract & Agency Staff - Full Cost,Business Change Support,Concept Information Technology Ltd T/A Concept Resourcing,209721,400.66,Information Management Services,Large,Programme Expenditure,,
UK Statistics Family,Office for National Statistics,09/09/2021,Exp - Short-Term Contract & Agency Staff - Full Cost,Business Change Support,Concept Information Technology Ltd T/A Concept Resourcing,209721,217.56,Information Management Services,Large,Programme Expenditure,,
UK Statistics Family,Office for National Statistics,09/09/2021,Exp - Purchase Of Goods And Services Consultants,Business Architecture Transformation And Statistical Strategy,Concept Information Technology Ltd T/A Concept Resourcing,209721,"10,440.00",Information Management Services,Large,Programme Expenditure,,
UK Statistics Family,Office for National Statistics,09/09/2021,Exp - Purchase Of Goods/Services - Contractors,Census & Soc Methodology Dd,Concept Information Technology Ltd T/A Concept Resourcing,209721,"6,417.00",Information Management Services,Large,Programme Expenditure,,
UK Statistics Family,Office for National Statistics,09/09/2021,Exp - Short-Term Contract & Agency Staff - Full Cost,Data Architecture,Concept Information Technology Ltd T/A Concept Resourcing,209721,"3,098.00",Information Management Services,Large,Programme Expenditure,,
UK Statistics Family,Office for National Statistics,09/09/2021,Exp - Short-Term Contract & Agency Staff - Full Cost,Public Sector And Households,Concept Information Technology Ltd T/A Concept Resourcing,209721,"1,007.44",Information Management Services,Large,Programme Expenditure,,
UK Statistics Family,Office for National Statistics,09/09/2021,Exp - Short-Term Contract & Agency Staff - Full Cost,Public Sector And Households,Concept Information Technology Ltd T/A Concept Resourcing,209721,"5,984.41",Information Management Services,Large,Programme Expenditure,,
UK Statistics Family,Office for National Statistics,09/09/2021,Exp - Purchase Of Goods/Services - Contractors,Social Survey Transformation Titchfield,Concept Information Technology Ltd T/A Concept Resourcing,209721,"13,428.00",Information Management Services,Large,Programme Expenditure,,
UK Statistics Family,Office for National Statistics,09/09/2021,Exp - Short-Term Contract & Agency Staff - Full Cost,Prices Division,Concept Information Technology Ltd T/A Concept Resourcing,209721,753.78,Information Management Services,Large,Programme Expenditure,,Karla to confirm what his is 
UK Statistics Family,Office for National Statistics,09/09/2021,Exp - Short-Term Contract & Agency Staff - Full Cost,Business Outputs And Developments,Concept Information Technology Ltd T/A Concept Resourcing,209721,"4,920.05",Information Management Services,Large,Programme Expenditure,,
UK Statistics Family,Office for National Statistics,09/09/2021,Exp - Purchase Of Goods/Services - Contractors,Digital Publishing,Certes Computing Ltd,209725,"45,175.49",Information Management Services,SME,Programme Expenditure,,
UK Statistics Family,Office for National Statistics,09/09/2021,Exp - Purchase Of Goods/Services - Contractors,Security Advisory,Certes Computing Ltd,209725,"15,820.46",Information Management Services,SME,Programme Expenditure,,
UK Statistics Family,Office for National Statistics,09/09/2021,Exp - Purchase Of Goods/Services - Contractors,Census & Soc Methodology Dd,Certes Computing Ltd,209725,"28,795.68",Information Management Services,SME,Programme Expenditure,,
UK Statistics Family,Office for National Statistics,09/09/2021,Exp - Purchase Of Goods/Services - Contractors,Data Architecture,Certes Computing Ltd,209725,"12,598.74",Information Management Services,SME,Programme Expenditure,,
UK Statistics Family,Office for National Statistics,09/09/2021,Exp - Purchase Of Goods/Services - Contractors,Data Architecture,Certes Computing Ltd,209725,"11,518.85",Information Management Services,SME,Programme Expenditure,,
UK Statistics Family,Office for National Statistics,09/09/2021,Exp - Purchase Of Goods/Services - Contractors,Strategy And Architecture,Certes Computing Ltd,209725,"15,372.00",Information Management Services,SME,Programme Expenditure,,
UK Statistics Family,Office for National Statistics,09/09/2021,Exp - Purchase Of Goods/Services - Contractors,Strategy And Architecture,Certes Computing Ltd,209725,"33,306.24",Information Management Services,SME,Programme Expenditure,,
UK Statistics Family,Office for National Statistics,09/09/2021,Exp - Purchase Of Goods/Services - Contractors,IT Applications,Certes Computing Ltd,209725,"13,318.67",Information Management Services,SME,Programme Expenditure,,
UK Statistics Family,Office for National Statistics,09/09/2021,Exp - Purchase Of Goods/Services - Contractors,Business Architecture,La International,209726,"8,636.52",Information Management Services,SME,Programme Expenditure,,
UK Statistics Family,Office for National Statistics,09/09/2021,Exp - Purchase Of Goods/Services - Contractors,Testing,La International,209726,"13,424.14",Information Management Services,SME,Programme Expenditure,,
UK Statistics Family,Office for National Statistics,09/09/2021,Exp - Purchase Of Goods/Services - Contractors,Testing,La International,209726,"5,206.25",Information Management Services,SME,Programme Expenditure,,
UK Statistics Family,Office for National Statistics,09/09/2021,Exp - Purchase Of Goods/Services - Contractors,HALE,La International,209726,"2,413.75",Information Management Services,SME,Programme Expenditure,,
UK Statistics Family,Office for National Statistics,09/09/2021,Exp - Purchase Of Goods/Services - Contractors,Security Operations,La International,209726,"9,611.64",Information Management Services,SME,Programme Expenditure,,
UK Statistics Family,Office for National Statistics,09/09/2021,Exp - Purchase Of Goods/Services - Contractors,Data Architecture,La International,209726,"10,047.24",Information Management Services,SME,Programme Expenditure,,
UK Statistics Family,Office for National Statistics,09/09/2021,Exp - Purchase Of Goods/Services - Contractors,Data Architecture,La International,209726,"3,203.88",Information Management Services,SME,Programme Expenditure,,
UK Statistics Family,Office for National Statistics,09/09/2021,Exp - Purchase Of Goods/Services - Contractors,Data Architecture,La International,209726,"3,588.30",Information Management Services,SME,Programme Expenditure,,
UK Statistics Family,Office for National Statistics,09/09/2021,Exp - Purchase Of Goods/Services - Contractors,Data Architecture,La International,209726,"3,524.22",Information Management Services,SME,Programme Expenditure,,
UK Statistics Family,Office for National Statistics,09/09/2021,Exp - Purchase Of Goods/Services - Contractors,CLOUD ARCHITECTURE,La International,209726,"15,506.68",Information Management Services,SME,Programme Expenditure,,
UK Statistics Family,Office for National Statistics,09/09/2021,Exp - Purchase Of Goods/Services - Contractors,Tech Delivery Legacy Sp,La International,209726,"16,147.52",Information Management Services,SME,Programme Expenditure,,
UK Statistics Family,Office for National Statistics,09/09/2021,Exp - Purchase Of Goods/Services - Contractors,Tech Delivery Legacy Sp,La International,209726,"3,524.22",Information Management Services,SME,Programme Expenditure,,
UK Statistics Family,Office for National Statistics,09/09/2021,Exp - Purchase Of Goods/Services - Contractors,IT Applications,La International,209726,"2,883.48",Information Management Services,SME,Programme Expenditure,,
UK Statistics Family,Office for National Statistics,09/09/2021,EXP - PURCHASE OF GOODS/SERVICES -  NON IT CONTRACTUAL PAYMENTS,Covid Infection Survey,HH Associates Ltd,209729,"38,597.86",Print and Post Services,SME,Programme Expenditure,,
UK Statistics Family,Office for National Statistics,09/09/2021,Rent Payable,Property London,Tandem Property Asset Management LLP (Rent),209734,"243,432.00",Property Rental,Large,Programme Expenditure,,
UK Statistics Family,Office for National Statistics,09/09/2021,Fixtures & Fittings At Cost - Additions,Property Newport,Orange box Limited,209735,"132,150.56",Office Furniture,SME,Programme Expenditure,,
UK Statistics Family,Office for National Statistics,10/09/2021,Exp - Purchase Of Goods/Services - IT Contractual Services,Digital Publishing,Swirrl It Ltd,209740,"71,640.00",Information Management Services,SME,Programme Expenditure,,
UK Statistics Family,Office for National Statistics,10/09/2021,Exp - Purchase Of Goods/Services - Incentive Payments,Survey Management,Park Retail Ltd,209741,"40,267.05",Survey Response Incentive Vouchers,Large,Programme Expenditure,,
UK Statistics Family,Office for National Statistics,10/09/2021,Exp - Purchase Of Goods/Services - Incentive Payments,Survey Management,Park Retail Ltd,209741,"23,148.56",Survey Response Incentive Vouchers,Large,Programme Expenditure,,
UK Statistics Family,Office for National Statistics,10/09/2021,Exp - Purchase Of Goods/Services - Incentive Payments,Survey Management,Park Retail Ltd,209741,"4,903.25",Survey Response Incentive Vouchers,Large,Programme Expenditure,,
UK Statistics Family,Office for National Statistics,10/09/2021,Exp - Purchase Of Goods/Services - Incentive Payments,Survey Management,Park Retail Ltd,209741,"-1,821.42",Survey Response Incentive Vouchers,Large,Programme Expenditure,,
UK Statistics Family,Office for National Statistics,10/09/2021,Exp - Purchase Of Goods/Services - Contractors,Testing,Concept Information Technology Ltd T/A Concept Resourcing,209742,"17,959.82",Information Management Services,Large,Programme Expenditure,,
UK Statistics Family,Office for National Statistics,10/09/2021,Exp - Short-Term Contract & Agency Staff - Full Cost,Covid Infection Survey,Concept Information Technology Ltd T/A Concept Resourcing,209742,"2,772.77",Information Management Services,Large,Programme Expenditure,,
UK Statistics Family,Office for National Statistics,10/09/2021,Exp - Short-Term Contract & Agency Staff - Full Cost,Covid Infection Survey,Concept Information Technology Ltd T/A Concept Resourcing,209742,"7,110.87",Information Management Services,Large,Programme Expenditure,,
UK Statistics Family,Office for National Statistics,10/09/2021,Exp - Short-Term Contract & Agency Staff - Full Cost,Covid Infection Survey,Concept Information Technology Ltd T/A Concept Resourcing,209742,"4,015.49",Information Management Services,Large,Programme Expenditure,,
UK Statistics Family,Office for National Statistics,10/09/2021,Exp - Short-Term Contract & Agency Staff - Full Cost,Business Change Support,Concept Information Technology Ltd T/A Concept Resourcing,209742,"1,611.68",Information Management Services,Large,Programme Expenditure,,
UK Statistics Family,Office for National Statistics,10/09/2021,Exp - Short-Term Contract & Agency Staff - Full Cost,Business Change Support,Concept Information Technology Ltd T/A Concept Resourcing,209742,"4,316.66",Information Management Services,Large,Programme Expenditure,,
UK Statistics Family,Office for National Statistics,10/09/2021,Exp - Short-Term Contract & Agency Staff - Full Cost,Business Change Support,Concept Information Technology Ltd T/A Concept Resourcing,209742,235.32,Information Management Services,Large,Programme Expenditure,,
UK Statistics Family,Office for National Statistics,10/09/2021,Exp - Short-Term Contract & Agency Staff - Full Cost,Business Change Support,Concept Information Technology Ltd T/A Concept Resourcing,209742,235.32,Information Management Services,Large,Programme Expenditure,,
UK Statistics Family,Office for National Statistics,10/09/2021,Exp - Short-Term Contract & Agency Staff - Full Cost,Strategy And Engagement,Concept Information Technology Ltd T/A Concept Resourcing,209742,"4,912.81",Information Management Services,Large,Programme Expenditure,,
UK Statistics Family,Office for National Statistics,10/09/2021,Exp - Short-Term Contract & Agency Staff - Full Cost,Business Architecture Transformation And Statistical Strategy,Concept Information Technology Ltd T/A Concept Resourcing,209742,"16,113.60",Information Management Services,Large,Programme Expenditure,,
UK Statistics Family,Office for National Statistics,10/09/2021,Exp - Short-Term Contract & Agency Staff - Full Cost,Ask Business Services,Concept Information Technology Ltd T/A Concept Resourcing,209742,"2,940.64",Information Management Services,Large,Programme Expenditure,,
UK Statistics Family,Office for National Statistics,10/09/2021,Exp - Purchase Of Goods/Services - IT Contractual Services,CDIO UNGP,Concept Information Technology Ltd T/A Concept Resourcing,209742,"18,000.00",Information Management Services,Large,Programme Expenditure,,
UK Statistics Family,Office for National Statistics,10/09/2021,Exp - Short-Term Contract & Agency Staff - Full Cost,Business Statistics Transformation,Concept Information Technology Ltd T/A Concept Resourcing,209742,66.6,Information Management Services,Large,Programme Expenditure,,
UK Statistics Family,Office for National Statistics,10/09/2021,Exp - Purchase Of Goods/Services - Contractors,Programme Delivery,Certes Computing Ltd,209750,"11,806.11",Information Management Services,SME,Programme Expenditure,,
UK Statistics Family,Office for National Statistics,10/09/2021,Exp - Purchase Of Goods/Services - Contractors,Best Practice And Impact,Certes Computing Ltd,209750,"10,087.92",Information Management Services,SME,Programme Expenditure,,
UK Statistics Family,Office for National Statistics,10/09/2021,Exp - Purchase Of Goods/Services - Contractors,Security And Information Management Saim,Certes Computing Ltd,209750,"15,820.46",Information Management Services,SME,Programme Expenditure,,
UK Statistics Family,Office for National Statistics,10/09/2021,Exp - Purchase Of Goods/Services - Contractors,Security Advisory,Certes Computing Ltd,209750,"15,820.46",Information Management Services,SME,Programme Expenditure,,
UK Statistics Family,Office for National Statistics,10/09/2021,Exp - Purchase Of Goods/Services - Contractors,Security Advisory,Certes Computing Ltd,209750,"11,795.45",Information Management Services,SME,Programme Expenditure,,
UK Statistics Family,Office for National Statistics,10/09/2021,Exp - Purchase Of Goods/Services - Contractors,CLOUD ARCHITECTURE,Certes Computing Ltd,209750,"11,529.00",Information Management Services,SME,Programme Expenditure,,
UK Statistics Family,Office for National Statistics,10/09/2021,Exp - Purchase Of Goods/Services - Contractors,Strategy And Architecture,Certes Computing Ltd,209750,"9,991.44",Information Management Services,SME,Programme Expenditure,,
UK Statistics Family,Office for National Statistics,10/09/2021,Exp - Purchase Of Goods/Services - Contractors,Strategy And Architecture,Certes Computing Ltd,209750,"23,490.00",Information Management Services,SME,Programme Expenditure,,
UK Statistics Family,Office for National Statistics,10/09/2021,Exp - Purchase Of Goods/Services - Contractors,Tech Delivery Legacy Sp,Certes Computing Ltd,209750,"10,078.99",Information Management Services,SME,Programme Expenditure,,
UK Statistics Family,Office for National Statistics,10/09/2021,Exp - Purchase Of Goods/Services - Contractors,Tech Delivery Legacy Sp,Certes Computing Ltd,209750,"6,533.16",Information Management Services,SME,Programme Expenditure,,
UK Statistics Family,Office for National Statistics,10/09/2021,Exp - Purchase Of Goods/Services - Contractors,Tech Delivery Data As A Platform,Certes Computing Ltd,209750,"5,604.40",Information Management Services,SME,Programme Expenditure,,
UK Statistics Family,Office for National Statistics,10/09/2021,Exp - Purchase Of Goods/Services - Contractors,IT Applications,Certes Computing Ltd,209750,"14,091.12",Information Management Services,SME,Programme Expenditure,,
UK Statistics Family,Office for National Statistics,10/09/2021,Exp - Purchase Of Goods/Services - Contractors,Digital Delivery,Certes Computing Ltd,209750,"10,760.40",Information Management Services,SME,Programme Expenditure,,
UK Statistics Family,Office for National Statistics,10/09/2021,Surveys,Business Outputs And Developments,Iff Research,209757,"195,306.00",Statistical Services,Large,Programme Expenditure,,
UK Statistics Family,Office for National Statistics,10/09/2021,Exp - Short-Term Contract & Agency Staff - Full Cost,Census CCS Data Collection,Malikshaw Interim & Executive,209758,"10,092.19",Information Management Services,SME,Programme Expenditure,,
UK Statistics Family,Office for National Statistics,10/09/2021,Exp - Short-Term Contract & Agency Staff - Full Cost,Census CCS Data Collection,Malikshaw Interim & Executive,209758,"1,123.33",Information Management Services,SME,Programme Expenditure,,
UK Statistics Family,Office for National Statistics,10/09/2021,Exp - Purchase Of Goods/Services - Contractors,Programme Delivery,Malikshaw Interim & Executive,209758,"7,920.00",Information Management Services,SME,Programme Expenditure,,
UK Statistics Family,Office for National Statistics,10/09/2021,Exp - Short-Term Contract & Agency Staff - Full Cost,Covid Infection Survey,Malikshaw Interim & Executive,209758,"2,844.84",Information Management Services,SME,Programme Expenditure,,
UK Statistics Family,Office for National Statistics,10/09/2021,Exp - Short-Term Contract & Agency Staff - Full Cost,International Trade And Transactions,Malikshaw Interim & Executive,209758,"8,190.00",Information Management Services,SME,Programme Expenditure,,
UK Statistics Family,Office for National Statistics,10/09/2021,Exp - Short-Term Contract & Agency Staff - Full Cost,Data Architecture,Malikshaw Interim & Executive,209758,"13,737.47",Information Management Services,SME,Programme Expenditure,,
UK Statistics Family,Office for National Statistics,10/09/2021,Exp - Purchase Of Goods/Services - Contractors,Data Architecture,Malikshaw Interim & Executive,209758,"14,760.00",Information Management Services,SME,Programme Expenditure,,
UK Statistics Family,Office for National Statistics,10/09/2021,Exp - Purchase Of Goods/Services - Contractors,Data Architecture,Malikshaw Interim & Executive,209758,"14,458.00",Information Management Services,SME,Programme Expenditure,,
UK Statistics Family,Office for National Statistics,10/09/2021,Exp - Purchase Of Goods/Services - Contractors,Strategy And Architecture,Malikshaw Interim & Executive,209758,"15,432.00",Information Management Services,SME,Programme Expenditure,,
UK Statistics Family,Office for National Statistics,10/09/2021,Exp - Purchase Of Goods/Services - Contractors,Strategy And Architecture,Malikshaw Interim & Executive,209758,"14,439.10",Information Management Services,SME,Programme Expenditure,,
UK Statistics Family,Office for National Statistics,10/09/2021,Exp - Purchase Of Goods/Services - Contractors,Tech Delivery Legacy Sp,Malikshaw Interim & Executive,209758,"3,437.88",Information Management Services,SME,Programme Expenditure,,
UK Statistics Family,Office for National Statistics,10/09/2021,Exp - Purchase Of Goods/Services - Contractors,Tech Delivery Legacy Sp,Malikshaw Interim & Executive,209758,"15,120.00",Information Management Services,SME,Programme Expenditure,,
UK Statistics Family,Office for National Statistics,10/09/2021,Exp - Purchase Of Goods/Services - Contractors,Data Science Campus,Malikshaw Interim & Executive,209758,"7,629.60",Information Management Services,SME,Programme Expenditure,,
UK Statistics Family,Office for National Statistics,10/09/2021,Exp - Short-Term Contract & Agency Staff - Full Cost,Interviewer Management TU,Malikshaw Interim & Executive,209758,"12,566.99",Information Management Services,SME,Programme Expenditure,,
UK Statistics Family,Office for National Statistics,10/09/2021,Exp - Short-Term Contract & Agency Staff - Full Cost,Interviewer Management TU,Malikshaw Interim & Executive,209758,145.24,Information Management Services,SME,Programme Expenditure,,
UK Statistics Family,Office for National Statistics,10/09/2021,Exp - Short-Term Contract & Agency Staff - Full Cost,Interviewer Management TU,Malikshaw Interim & Executive,209758,"2,335.82",Information Management Services,SME,Programme Expenditure,,
UK Statistics Family,Office for National Statistics,10/09/2021,Exp - Short-Term Contract & Agency Staff - Full Cost,Social Surveys Division,Malikshaw Interim & Executive,209758,"9,959.95",Information Management Services,SME,Programme Expenditure,,
UK Statistics Family,Office for National Statistics,10/09/2021,Marketing & Media,Stakeholder Engagement And Comms,Manning Gottlieb,209762,"36,963.58",Marketing Services,Large,Programme Expenditure,,
UK Statistics Family,Office for National Statistics,10/09/2021,Exp - Purchase Of Goods/Services - Contractors,Business Architecture,Talent International,209765,"10,649.20",Information Management Services,SME,Programme Expenditure,,
UK Statistics Family,Office for National Statistics,10/09/2021,Exp - Purchase Of Goods/Services - Contractors,Covid Infection Survey,Talent International,209765,"2,396.00",Information Management Services,SME,Programme Expenditure,,
UK Statistics Family,Office for National Statistics,10/09/2021,Exp - Purchase Of Goods/Services - Contractors,Digital Publishing,Talent International,209765,"53,039.34",Information Management Services,SME,Programme Expenditure,,
UK Statistics Family,Office for National Statistics,10/09/2021,Exp - Short-Term Contract & Agency Staff - Full Cost,International Trade And Transactions,Talent International,209765,"12,115.64",Information Management Services,SME,Programme Expenditure,,
UK Statistics Family,Office for National Statistics,10/09/2021,Exp - Short-Term Contract & Agency Staff - Full Cost,Strategy And Engagement,Talent International,209765,"2,161.39",Information Management Services,SME,Programme Expenditure,,
UK Statistics Family,Office for National Statistics,10/09/2021,Exp - Short-Term Contract & Agency Staff - Full Cost,Data Architecture,Talent International,209765,752.14,Information Management Services,SME,Programme Expenditure,,
UK Statistics Family,Office for National Statistics,10/09/2021,Exp - Short-Term Contract & Agency Staff - Full Cost,Data Architecture,Talent International,209765,"1,504.27",Information Management Services,SME,Programme Expenditure,,
UK Statistics Family,Office for National Statistics,10/09/2021,Exp - Purchase Of Goods/Services - Contractors,CLOUD ARCHITECTURE,Talent International,209765,"22,199.76",Information Management Services,SME,Programme Expenditure,,
UK Statistics Family,Office for National Statistics,10/09/2021,Exp - Purchase Of Goods/Services - Contractors,Strategy And Architecture,Talent International,209765,"12,000.00",Information Management Services,SME,Programme Expenditure,,
UK Statistics Family,Office for National Statistics,10/09/2021,Exp - Purchase Of Goods/Services - IT Contractual Services,Tech Delivery Legacy Sp,Talent International,209765,"13,319.78",Information Management Services,SME,Programme Expenditure,,
UK Statistics Family,Office for National Statistics,10/09/2021,Exp - Purchase Of Goods/Services - Contractors,Tech Delivery Next Gen IT And Infrastructure,Talent International,209765,"12,959.78",Information Management Services,SME,Programme Expenditure,,
UK Statistics Family,Office for National Statistics,10/09/2021,Exp - Short-Term Contract & Agency Staff - Full Cost,Social Surveys Division,Talent International,209765,752.14,Information Management Services,SME,Programme Expenditure,,
UK Statistics Family,Office for National Statistics,10/09/2021,Exp - Short-Term Contract & Agency Staff - Full Cost,Prices Division,Talent International,209765,"3,687.42",Information Management Services,SME,Programme Expenditure,,
UK Statistics Family,Office for National Statistics,10/09/2021,Exp - Purchase Of Goods/Services - Contractors,Strategy And Architecture,LA FOSSE ASSOCIATES LIMITED,209766,"15,750.00",Information Management Services,Large,Programme Expenditure,,
UK Statistics Family,Office for National Statistics,10/09/2021,Exp - Purchase Of Goods/Services - Contractors,Tech Delivery Legacy Sp,LA FOSSE ASSOCIATES LIMITED,209766,"14,400.00",Information Management Services,Large,Programme Expenditure,,
UK Statistics Family,Office for National Statistics,10/09/2021,Exp - Purchase Of Goods/Services - Contractors,Census CCS Data Collection,SmartSourcing Ltd,209768,"3,049.75",Information Management Services,SME,Programme Expenditure,,
UK Statistics Family,Office for National Statistics,10/09/2021,Exp - Short-Term Contract & Agency Staff - Full Cost,Business Architecture Transformation And Statistical Strategy,SmartSourcing Ltd,209768,"25,889.83",Information Management Services,SME,Programme Expenditure,,
UK Statistics Family,Office for National Statistics,10/09/2021,Exp - Purchase Of Goods/Services - Contractors,Data Architecture,SmartSourcing Ltd,209768,"29,280.00",Information Management Services,SME,Programme Expenditure,,
UK Statistics Family,Office for National Statistics,10/09/2021,Exp - Purchase Of Goods/Services - IT Contractual Services,CLOUD ARCHITECTURE,SmartSourcing Ltd,209768,"11,004.58",Information Management Services,SME,Programme Expenditure,,
UK Statistics Family,Office for National Statistics,10/09/2021,Exp - Purchase Of Goods/Services - Contractors,CDIO UNGP,SmartSourcing Ltd,209768,"6,743.09",Information Management Services,SME,Programme Expenditure,,
UK Statistics Family,Office for National Statistics,10/09/2021,Exp - Purchase Of Goods/Services - Contractors,Tech Delivery Legacy Sp,SmartSourcing Ltd,209768,"6,173.28",Information Management Services,SME,Programme Expenditure,,
UK Statistics Family,Office for National Statistics,10/09/2021,Exp - Purchase Of Goods/Services - Contractors,IT Applications,SmartSourcing Ltd,209768,"2,876.93",Information Management Services,SME,Programme Expenditure,,
UK Statistics Family,Office for National Statistics,10/09/2021,Exp - Purchase Of Goods/Services - Contractors,Data As A Service,SmartSourcing Ltd,209768,"14,384.64",Information Management Services,SME,Programme Expenditure,,
UK Statistics Family,Office for National Statistics,10/09/2021,Exp - Short-Term Contract & Agency Staff - Full Cost,Interviewer Management TU,SmartSourcing Ltd,209768,"2,574.56",Information Management Services,SME,Programme Expenditure,,
UK Statistics Family,Office for National Statistics,10/09/2021,Exp - Purchase Of Goods/Services - Contractors,Commercial Services,Gardiner & Theobald LLP,209770,"80,460.00",Temporary Staff,Large,Programme Expenditure,,
UK Statistics Family,Office for National Statistics,10/09/2021,Exp - Purchase Of Goods/Services - Contractors,Testing,Parity Resources Limited,209772,"5,810.76",Information Management Services,Large,Programme Expenditure,,
UK Statistics Family,Office for National Statistics,10/09/2021,Exp - Short-Term Contract & Agency Staff - Full Cost,Census CCS Data Collection,Parity Resources Limited,209772,785.88,Information Management Services,Large,Programme Expenditure,,
UK Statistics Family,Office for National Statistics,10/09/2021,Exp - Purchase Of Goods/Services - Contractors,International Trade And Transactions,Parity Resources Limited,209772,"3,204.00",Information Management Services,Large,Programme Expenditure,,
UK Statistics Family,Office for National Statistics,10/09/2021,Exp - Short-Term Contract & Agency Staff - Full Cost,Business Architecture Transformation And Statistical Strategy,Parity Resources Limited,209772,"2,424.24",Information Management Services,Large,Programme Expenditure,,
UK Statistics Family,Office for National Statistics,10/09/2021,Exp - Short-Term Contract & Agency Staff - Full Cost,Recruitment ,Parity Resources Limited,209772,732.6,Information Management Services,Large,Programme Expenditure,,
UK Statistics Family,Office for National Statistics,10/09/2021,Exp - Purchase Of Goods/Services - Contractors,Security Advisory,Parity Resources Limited,209772,"7,433.28",Information Management Services,Large,Programme Expenditure,,
UK Statistics Family,Office for National Statistics,10/09/2021,Exp - Short-Term Contract & Agency Staff - Full Cost,Data Architecture,Parity Resources Limited,209772,732.6,Information Management Services,Large,Programme Expenditure,,
UK Statistics Family,Office for National Statistics,10/09/2021,Exp - Purchase Of Goods/Services - Contractors,Data Architecture,Parity Resources Limited,209772,"3,229.63",Information Management Services,Large,Programme Expenditure,,
UK Statistics Family,Office for National Statistics,10/09/2021,Exp - Purchase Of Goods/Services - Contractors,IT Applications,Parity Resources Limited,209772,"7,176.96",Information Management Services,Large,Programme Expenditure,,
UK Statistics Family,Office for National Statistics,10/09/2021,Exp - Purchase Of Goods/Services - Contractors,Business Statistics Transformation,Parity Resources Limited,209772,"11,214.00",Information Management Services,Large,Programme Expenditure,,
UK Statistics Family,Office for National Statistics,10/09/2021,Exp - Short-Term Contract & Agency Staff - Full Cost,Social Surveys Division,Parity Resources Limited,209772,"2,197.80",Information Management Services,Large,Programme Expenditure,,
UK Statistics Family,Office for National Statistics,10/09/2021,Exp - Purchase Of Goods/Services - Contractors,Divisional Management,Parity Resources Limited,209772,"4,802.70",Information Management Services,Large,Programme Expenditure,,
UK Statistics Family,Office for National Statistics,10/09/2021,Exp - Seconded UK Staff - Basic Salary,FAST STREAM RECHARGES - CABINET OFFICE,Cabinet Office,209773,"42,321.00",Fast Stream Programme Charges,Large,Programme Expenditure,,
UK Statistics Family,Office for National Statistics,13/09/2021,Exp - Purchase Of Goods/Services - Incentive Payments,Survey Management,Park Retail Ltd,209876,"65,975.03",Survey Response Incentive Vouchers,Large,Programme Expenditure,,
UK Statistics Family,Office for National Statistics,13/09/2021,Exp - Purchase Of Goods/Services - Incentive Payments,Survey Management,Park Retail Ltd,209876,"19,681.52",Survey Response Incentive Vouchers,Large,Programme Expenditure,,
UK Statistics Family,Office for National Statistics,13/09/2021,Exp - Purchase Of Goods/Services - Incentive Payments,Survey Management,Park Retail Ltd,209876,"7,250.48",Survey Response Incentive Vouchers,Large,Programme Expenditure,,
UK Statistics Family,Office for National Statistics,13/09/2021,Exp - Purchase Of Goods/Services - Incentive Payments,Survey Management,Park Retail Ltd,209876,"9,793.04",Survey Response Incentive Vouchers,Large,Programme Expenditure,,
UK Statistics Family,Office for National Statistics,13/09/2021,Exp - Purchase Of Goods/Services - Incentive Payments,Survey Management,Park Retail Ltd,209876,"2,662.09",Survey Response Incentive Vouchers,Large,Programme Expenditure,,
UK Statistics Family,Office for National Statistics,13/09/2021,Exp - Purchase Of Goods/Services - Other ICT Costs Software,Finance,Scc,209878,"154,286.88",Software Licenses,Large,Programme Expenditure,,
UK Statistics Family,Office for National Statistics,13/09/2021,Exp - Purchase Of Goods/Services - Contractors,Business Architecture,La International,209881,"7,600.22",Information Management Services,SME,Programme Expenditure,,
UK Statistics Family,Office for National Statistics,13/09/2021,Exp - Purchase Of Goods/Services - Contractors,Business Architecture,La International,209881,"8,611.92",Information Management Services,SME,Programme Expenditure,,
UK Statistics Family,Office for National Statistics,13/09/2021,Exp - Purchase Of Goods/Services - Contractors,Testing,La International,209881,"21,289.64",Information Management Services,SME,Programme Expenditure,,
UK Statistics Family,Office for National Statistics,13/09/2021,Exp - Purchase Of Goods/Services - Contractors,Testing,La International,209881,"5,206.25",Information Management Services,SME,Programme Expenditure,,
UK Statistics Family,Office for National Statistics,13/09/2021,Exp - Purchase Of Goods/Services - Contractors,HALE,La International,209881,"4,344.75",Information Management Services,SME,Programme Expenditure,,
UK Statistics Family,Office for National Statistics,13/09/2021,Exp - Purchase Of Goods/Services - Contractors,Data Architecture,La International,209881,640.78,Information Management Services,SME,Programme Expenditure,,
UK Statistics Family,Office for National Statistics,13/09/2021,Exp - Purchase Of Goods/Services - Contractors,Data Architecture,La International,209881,"7,099.73",Information Management Services,SME,Programme Expenditure,,
UK Statistics Family,Office for National Statistics,13/09/2021,Exp - Purchase Of Goods/Services - Contractors,Data Architecture,La International,209881,704.84,Information Management Services,SME,Programme Expenditure,,
UK Statistics Family,Office for National Statistics,13/09/2021,Exp - Purchase Of Goods/Services - Contractors,Data Architecture,La International,209881,"2,114.53",Information Management Services,SME,Programme Expenditure,,
UK Statistics Family,Office for National Statistics,13/09/2021,Exp - Purchase Of Goods/Services - Contractors,CLOUD ARCHITECTURE,La International,209881,"3,075.70",Information Management Services,SME,Programme Expenditure,,
UK Statistics Family,Office for National Statistics,13/09/2021,Exp - Purchase Of Goods/Services - Contractors,Tech Delivery Data As A Platform,La International,209881,"7,176.60",Information Management Services,SME,Programme Expenditure,,
UK Statistics Family,Office for National Statistics,13/09/2021,Exp - Short-Term Contract & Agency Staff - Full Cost,Social Survey Transformation Titchfield,La International,209881,920.54,Information Management Services,SME,Programme Expenditure,,
UK Statistics Family,Office for National Statistics,13/09/2021,End User Software And Hardware,IT Operations,Computacenter (Uk) Limited,209882,"1,143,003.80",Software Licenses,Large,Programme Expenditure,,
UK Statistics Family,Office for National Statistics,13/09/2021,Print & Post,Social Survey Transformation Newport,APS Group,209886,"67,192.41",Print and Post Services,Large,Programme Expenditure,,
UK Statistics Family,Office for National Statistics,13/09/2021,Exp - Short-Term Contract & Agency Staff - Full Cost,Data Architecture,Malikshaw Interim & Executive,209887,"2,394.05",Information Management Services,SME,Programme Expenditure,,
UK Statistics Family,Office for National Statistics,13/09/2021,Exp - Short-Term Contract & Agency Staff - Full Cost,Data Architecture,Malikshaw Interim & Executive,209887,"15,812.05",Information Management Services,SME,Programme Expenditure,,
UK Statistics Family,Office for National Statistics,13/09/2021,Exp - Short-Term Contract & Agency Staff - Full Cost,Divisional Management,Malikshaw Interim & Executive,209887,"8,656.48",Information Management Services,SME,Programme Expenditure,,
UK Statistics Family,Office for National Statistics,13/09/2021,Exp - Purchase Of Goods/Services - Contractors,Business Architecture,LA FOSSE ASSOCIATES LIMITED,209890,"17,400.00",Information Management Services,Large,Programme Expenditure,,
UK Statistics Family,Office for National Statistics,13/09/2021,Exp - Purchase Of Goods/Services - Contractors,Digital Publishing,LA FOSSE ASSOCIATES LIMITED,209890,"18,000.00",Information Management Services,Large,Programme Expenditure,,
UK Statistics Family,Office for National Statistics,13/09/2021,Exp - Purchase Of Goods/Services - Contractors,Digital Publishing,LA FOSSE ASSOCIATES LIMITED,209890,"25,200.00",Information Management Services,Large,Programme Expenditure,,
UK Statistics Family,Office for National Statistics,13/09/2021,Exp - Purchase Of Goods/Services - Contractors,Digital Publishing,LA FOSSE ASSOCIATES LIMITED,209890,"52,935.00",Information Management Services,Large,Programme Expenditure,,
UK Statistics Family,Office for National Statistics,13/09/2021,"ICT Outsourcing, Maintenance And Support",Senior Management Team Design,Totalmobile Ltd,209895,"115,533.60",Software Licenses,SME,Programme Expenditure,,
UK Statistics Family,Office for National Statistics,14/09/2021,Exp - Purchase Of Goods/Services - Contractors,Digital Publishing,LA FOSSE ASSOCIATES LIMITED,210045,"4,350.00",Information Management Services,Large,Programme Expenditure,,
UK Statistics Family,Office for National Statistics,14/09/2021,Exp - Purchase Of Goods/Services - Contractors,Researcher Support And Data Access ,LA FOSSE ASSOCIATES LIMITED,210045,"15,750.00",Information Management Services,Large,Programme Expenditure,,
UK Statistics Family,Office for National Statistics,14/09/2021,Exp - Purchase Of Goods/Services - Contractors,INTEGRATED DATA STRATEGY AND DELIVERY,LA FOSSE ASSOCIATES LIMITED,210045,"3,600.00",Information Management Services,Large,Programme Expenditure,,
UK Statistics Family,Office for National Statistics,14/09/2021,Exp - Purchase Of Goods/Services - Contractors,INTEGRATED DATA STRATEGY AND DELIVERY,LA FOSSE ASSOCIATES LIMITED,210045,"14,400.00",Information Management Services,Large,Programme Expenditure,,
UK Statistics Family,Office for National Statistics,14/09/2021,Postage,Interviewer Support,Banner Group Ltd,210046,"30,426.00",Stationery,SME,Programme Expenditure,,
UK Statistics Family,Office for National Statistics,14/09/2021,EXP - PURCHASE OF GOODS/SERVICES -  NON IT CONTRACTUAL PAYMENTS,Census CCS Data Collection,Adecco UK Limited,210048,"421,622.83",Census People Services Contractual,SME,Programme Expenditure,,
UK Statistics Family,Office for National Statistics,14/09/2021,Exp - Purchase Of Goods/Services - Contractors,Tech Delivery Legacy Sp,La International,210054,"16,916.26",Information Management Services,SME,Programme Expenditure,,
UK Statistics Family,Office for National Statistics,14/09/2021,Exp - Purchase Of Goods/Services - Contractors,Tech Delivery Data As A Platform,La International,210054,"12,917.88",Information Management Services,SME,Programme Expenditure,,
UK Statistics Family,Office for National Statistics,15/09/2021,Buildings Under Construction,Property Newport,Vinci Construction UK Limited,210057,"34,795.13",Facilities Mangement Services,Large,Programme Expenditure,,
UK Statistics Family,Office for National Statistics,15/09/2021,Exp - Short-Term Contract & Agency Staff - Full Cost,Census CCS Data Collection,Concept Information Technology Ltd T/A Concept Resourcing,210058,980.07,Information Management Services,Large,Programme Expenditure,,
UK Statistics Family,Office for National Statistics,15/09/2021,Exp - Short-Term Contract & Agency Staff - Full Cost,Covid Infection Survey,Concept Information Technology Ltd T/A Concept Resourcing,210058,"4,854.83",Information Management Services,Large,Programme Expenditure,,
UK Statistics Family,Office for National Statistics,15/09/2021,Exp - Short-Term Contract & Agency Staff - Full Cost,Business Change Support,Concept Information Technology Ltd T/A Concept Resourcing,210058,"2,032.81",Information Management Services,Large,Programme Expenditure,,
UK Statistics Family,Office for National Statistics,15/09/2021,Exp - Short-Term Contract & Agency Staff - Full Cost,Business Change Support,Concept Information Technology Ltd T/A Concept Resourcing,210058,"14,618.15",Information Management Services,Large,Programme Expenditure,,
UK Statistics Family,Office for National Statistics,15/09/2021,Exp - Short-Term Contract & Agency Staff - Full Cost,Business Change Support,Concept Information Technology Ltd T/A Concept Resourcing,210058,"6,244.86",Information Management Services,Large,Programme Expenditure,,
UK Statistics Family,Office for National Statistics,15/09/2021,Exp - Short-Term Contract & Agency Staff - Full Cost,Business Change Support,Concept Information Technology Ltd T/A Concept Resourcing,210058,"5,477.18",Information Management Services,Large,Programme Expenditure,,
UK Statistics Family,Office for National Statistics,15/09/2021,Exp - Short-Term Contract & Agency Staff - Full Cost,Business Change Support,Concept Information Technology Ltd T/A Concept Resourcing,210058,"4,920.05",Information Management Services,Large,Programme Expenditure,,
UK Statistics Family,Office for National Statistics,15/09/2021,Exp - Short-Term Contract & Agency Staff - Full Cost,Business Change Support,Concept Information Technology Ltd T/A Concept Resourcing,210058,"3,867.40",Information Management Services,Large,Programme Expenditure,,
UK Statistics Family,Office for National Statistics,15/09/2021,Exp - Short-Term Contract & Agency Staff - Full Cost,Business Change Support,Concept Information Technology Ltd T/A Concept Resourcing,210058,"11,178.14",Information Management Services,Large,Programme Expenditure,,
UK Statistics Family,Office for National Statistics,15/09/2021,Exp - Short-Term Contract & Agency Staff - Full Cost,Business Change Support,Concept Information Technology Ltd T/A Concept Resourcing,210058,"16,171.51",Information Management Services,Large,Programme Expenditure,,
UK Statistics Family,Office for National Statistics,15/09/2021,Exp - Purchase Of Goods/Services - Contractors,Business Change Support,Concept Information Technology Ltd T/A Concept Resourcing,210058,88.8,Information Management Services,Large,Programme Expenditure,,
UK Statistics Family,Office for National Statistics,15/09/2021,Exp - Short-Term Contract & Agency Staff - Full Cost,N A Coordination,Concept Information Technology Ltd T/A Concept Resourcing,210058,556.56,Information Management Services,Large,Programme Expenditure,,
UK Statistics Family,Office for National Statistics,15/09/2021,Exp - Short-Term Contract & Agency Staff - Full Cost,International Trade And Transactions,Concept Information Technology Ltd T/A Concept Resourcing,210058,"1,493.29",Information Management Services,Large,Programme Expenditure,,
UK Statistics Family,Office for National Statistics,15/09/2021,Exp - Short-Term Contract & Agency Staff - Full Cost,International Trade And Transactions,Concept Information Technology Ltd T/A Concept Resourcing,210058,"1,335.11",Information Management Services,Large,Programme Expenditure,,
UK Statistics Family,Office for National Statistics,15/09/2021,Exp - Short-Term Contract & Agency Staff - Full Cost,International Trade And Transactions,Concept Information Technology Ltd T/A Concept Resourcing,210058,261.86,Information Management Services,Large,Programme Expenditure,,
UK Statistics Family,Office for National Statistics,15/09/2021,Exp - Short-Term Contract & Agency Staff - Full Cost,Productivity Research And Professional Development,Concept Information Technology Ltd T/A Concept Resourcing,210058,771.66,Information Management Services,Large,Programme Expenditure,,
UK Statistics Family,Office for National Statistics,15/09/2021,Exp - Purchase Of Goods And Services Consultants,Productivity Research And Professional Development,Concept Information Technology Ltd T/A Concept Resourcing,210058,"9,425.50",Information Management Services,Large,Programme Expenditure,,
UK Statistics Family,Office for National Statistics,15/09/2021,Exp - Purchase Of Goods And Services Consultants,Productivity Research And Professional Development,Concept Information Technology Ltd T/A Concept Resourcing,210058,"3,921.85",Information Management Services,Large,Programme Expenditure,,
UK Statistics Family,Office for National Statistics,15/09/2021,Exp - Short-Term Contract & Agency Staff - Full Cost,Strategy And Engagement,Concept Information Technology Ltd T/A Concept Resourcing,210058,361.74,Information Management Services,Large,Programme Expenditure,,
UK Statistics Family,Office for National Statistics,15/09/2021,Exp - Purchase Of Goods/Services - Contractors,Business Architecture Transformation And Statistical Strategy,Concept Information Technology Ltd T/A Concept Resourcing,210058,"18,270.00",Information Management Services,Large,Programme Expenditure,,
UK Statistics Family,Office for National Statistics,15/09/2021,Exp - Short-Term Contract & Agency Staff - Full Cost,Business Statistics Transformation,Concept Information Technology Ltd T/A Concept Resourcing,210058,"9,047.83",Information Management Services,Large,Programme Expenditure,,
UK Statistics Family,Office for National Statistics,15/09/2021,Exp - Short-Term Contract & Agency Staff - Full Cost,Prices Division,Concept Information Technology Ltd T/A Concept Resourcing,210058,439.56,Information Management Services,Large,Programme Expenditure,,
UK Statistics Family,Office for National Statistics,15/09/2021,Exp - Short-Term Contract & Agency Staff - Full Cost,Prices Division,Concept Information Technology Ltd T/A Concept Resourcing,210058,"1,705.56",Information Management Services,Large,Programme Expenditure,,
UK Statistics Family,Office for National Statistics,15/09/2021,Exp - Short-Term Contract & Agency Staff - Full Cost,Business Outputs And Developments,Concept Information Technology Ltd T/A Concept Resourcing,210058,"4,953.89",Information Management Services,Large,Programme Expenditure,,
UK Statistics Family,Office for National Statistics,15/09/2021,Training & Development,Security And Information Management Saim,Computacenter (Uk) Limited,210067,"3,120.26",Software Licenses,Large,Programme Expenditure,,
UK Statistics Family,Office for National Statistics,15/09/2021,Software Licences At Cost - Additions,IT Operations,Computacenter (Uk) Limited,210067,"157,627.54",Software Licenses,Large,Programme Expenditure,,
UK Statistics Family,Office for National Statistics,15/09/2021,"ICT Outsourcing, Maintenance And Support",IT Operations,Computacenter (Uk) Limited,210067,"111,750.13",Software Licenses,Large,Programme Expenditure,,
UK Statistics Family,Office for National Statistics,15/09/2021,Specialist User Software And Hardware,Corporate Centre,CTS (Cloud Technology Solutions Ltd),210071,"116,785.20",DST Infrastructure Preparation,Large,Programme Expenditure,,
UK Statistics Family,Office for National Statistics,15/09/2021,EXP - PURCHASE OF GOODS/SERVICES -  NON IT CONTRACTUAL PAYMENTS,Data Collection Service,HH Associates Ltd,210072,"146,297.00",Print and Post Services,SME,Programme Expenditure,,
UK Statistics Family,Office for National Statistics,15/09/2021,Exp - Short-Term Contract & Agency Staff - Full Cost,Business Architecture,Talent International,210074,"5,461.20",Information Management Services,SME,Programme Expenditure,,
UK Statistics Family,Office for National Statistics,15/09/2021,Exp - Short-Term Contract & Agency Staff - Full Cost,Census CCS Data Collection,Talent International,210074,"3,633.14",Information Management Services,SME,Programme Expenditure,,
UK Statistics Family,Office for National Statistics,15/09/2021,Exp - Short-Term Contract & Agency Staff - Full Cost,Census CCS Data Collection,Talent International,210074,133.14,Information Management Services,SME,Programme Expenditure,,
UK Statistics Family,Office for National Statistics,15/09/2021,Exp - Short-Term Contract & Agency Staff - Full Cost,Strategy And Engagement,Talent International,210074,"2,481.07",Information Management Services,SME,Programme Expenditure,,
UK Statistics Family,Office for National Statistics,15/09/2021,Exp - Short-Term Contract & Agency Staff - Full Cost,Commercial Services,Talent International,210074,106.56,Information Management Services,SME,Programme Expenditure,,
UK Statistics Family,Office for National Statistics,15/09/2021,Exp - Short-Term Contract & Agency Staff - Full Cost,Data Architecture,Talent International,210074,996.68,Information Management Services,SME,Programme Expenditure,,
UK Statistics Family,Office for National Statistics,15/09/2021,Exp - Short-Term Contract & Agency Staff - Full Cost,Data Architecture,Talent International,210074,"5,680.22",Information Management Services,SME,Programme Expenditure,,
UK Statistics Family,Office for National Statistics,15/09/2021,Exp - Purchase Of Goods/Services - Contractors,Tech Delivery Next Gen IT And Infrastructure,Talent International,210074,"2,400.00",Information Management Services,SME,Programme Expenditure,,
UK Statistics Family,Office for National Statistics,15/09/2021,Exp - Purchase Of Goods/Services - Contractors,IT Applications,Talent International,210074,"29,196.00",Information Management Services,SME,Programme Expenditure,,
UK Statistics Family,Office for National Statistics,15/09/2021,Exp - Short-Term Contract & Agency Staff - Full Cost,Social Surveys Division,Talent International,210074,"5,016.22",Information Management Services,SME,Programme Expenditure,,
UK Statistics Family,Office for National Statistics,15/09/2021,Exp - Short-Term Contract & Agency Staff - Full Cost,Labour Market,Talent International,210074,599.04,Information Management Services,SME,Programme Expenditure,,
UK Statistics Family,Office for National Statistics,15/09/2021,Exp - Purchase Of Goods And Services Consultants,Productivity Research And Professional Development,Frontier Economics,210082,"36,600.00",Statistical Services,SME,Programme Expenditure,,
UK Statistics Family,Office for National Statistics,15/09/2021,Fixtures & Fittings At Cost - Additions,Property Newport,Orange box Limited,210083,"40,824.00",Office Furniture,SME,Programme Expenditure,,
UK Statistics Family,Office for National Statistics,15/09/2021,Fixtures & Fittings At Cost - Additions,Property Titchfield,Orange box Limited,210083,"19,908.00",Office Furniture,SME,Programme Expenditure,,
UK Statistics Family,Office for National Statistics,15/09/2021,Software Licences At Cost - Additions,Property Services,Cadline Ltd,210084,"25,200.00",Software Licenses,SME,Programme Expenditure,,
UK Statistics Family,Office for National Statistics,15/09/2021,Exp - Short-Term Contract & Agency Staff - Full Cost,Census CCS Data Collection,Parity Resources Limited,210087,819,Information Management Services,Large,Programme Expenditure,,
UK Statistics Family,Office for National Statistics,15/09/2021,Exp - Purchase Of Goods/Services - Contractors,Digital Publishing,Parity Resources Limited,210087,"19,110.90",Information Management Services,Large,Programme Expenditure,,
UK Statistics Family,Office for National Statistics,15/09/2021,Exp - Short-Term Contract & Agency Staff - Full Cost,Productivity Research And Professional Development,Parity Resources Limited,210087,"7,468.56",Information Management Services,Large,Programme Expenditure,,
UK Statistics Family,Office for National Statistics,15/09/2021,Exp - Short-Term Contract & Agency Staff - Full Cost,Business Architecture Transformation And Statistical Strategy,Parity Resources Limited,210087,"1,001.22",Information Management Services,Large,Programme Expenditure,,
UK Statistics Family,Office for National Statistics,15/09/2021,Exp - Purchase Of Goods/Services - Contractors,Portfolio Delivery,Parity Resources Limited,210087,"6,358.73",Information Management Services,Large,Programme Expenditure,,
UK Statistics Family,Office for National Statistics,15/09/2021,Exp - Purchase Of Goods/Services - Contractors,Commercial Services,Parity Resources Limited,210087,"25,503.84",Information Management Services,Large,Programme Expenditure,,
UK Statistics Family,Office for National Statistics,15/09/2021,Exp - Short-Term Contract & Agency Staff - Full Cost,Recruitment ,Parity Resources Limited,210087,"1,465.20",Information Management Services,Large,Programme Expenditure,,
UK Statistics Family,Office for National Statistics,15/09/2021,Exp - Purchase Of Goods/Services - Contractors,Strategy And Architecture,Parity Resources Limited,210087,"4,510.50",Information Management Services,Large,Programme Expenditure,,
UK Statistics Family,Office for National Statistics,15/09/2021,Exp - Purchase Of Goods/Services - Contractors,IT Applications,Parity Resources Limited,210087,"13,072.32",Information Management Services,Large,Programme Expenditure,,
UK Statistics Family,Office for National Statistics,16/09/2021,Exp - Purchase Of Goods And Services Consultants,Digital Delivery,Xma Limited,210261,"5,512.50",Costs Associated with Mobile Devices,Large,Programme Expenditure,,
UK Statistics Family,Office for National Statistics,16/09/2021,Exp - Purchase Of Goods/Services - IT Contractual Services,Digital Delivery,Xma Limited,210261,"168,489.06",Costs Associated with Mobile Devices,Large,Programme Expenditure,,
UK Statistics Family,Office for National Statistics,16/09/2021,Exp - Purchase Of Goods/Services - Contractors,Data Architecture,Certes Computing Ltd,210264,"8,006.28",Information Management Services,SME,Programme Expenditure,,
UK Statistics Family,Office for National Statistics,16/09/2021,Exp - Purchase Of Goods/Services - Contractors,Strategy And Architecture,Certes Computing Ltd,210264,"16,653.12",Information Management Services,SME,Programme Expenditure,,
UK Statistics Family,Office for National Statistics,16/09/2021,Exp - Purchase Of Goods/Services - Contractors,Digital Delivery,Certes Computing Ltd,210264,"12,489.84",Information Management Services,SME,Programme Expenditure,,
UK Statistics Family,Office for National Statistics,16/09/2021,Print & Post,Social Survey Transformation Newport,APS Group,210266,"33,428.90",Print and Post Services,Large,Programme Expenditure,,
UK Statistics Family,Office for National Statistics,16/09/2021,Exp - Short-Term Contract & Agency Staff - Full Cost,International Trade And Transactions,Malikshaw Interim & Executive,210270,"5,700.70",Information Management Services,SME,Programme Expenditure,,
UK Statistics Family,Office for National Statistics,16/09/2021,Exp - Short-Term Contract & Agency Staff - Full Cost,Data Architecture,Malikshaw Interim & Executive,210270,"3,142.19",Information Management Services,SME,Programme Expenditure,,
UK Statistics Family,Office for National Statistics,16/09/2021,Exp - Short-Term Contract & Agency Staff - Full Cost,Data Architecture,Malikshaw Interim & Executive,210270,"8,188.24",Information Management Services,SME,Programme Expenditure,,
UK Statistics Family,Office for National Statistics,16/09/2021,Exp - Purchase Of Goods/Services - Contractors,Data As A Service,Malikshaw Interim & Executive,210270,"14,439.10",Information Management Services,SME,Programme Expenditure,,
UK Statistics Family,Office for National Statistics,16/09/2021,Exp - Purchase Of Goods/Services - Contractors,Digital Publishing,Talent International,210273,"10,782.00",Information Management Services,SME,Programme Expenditure,,
UK Statistics Family,Office for National Statistics,16/09/2021,Exp - Short-Term Contract & Agency Staff - Full Cost,Data Architecture,Talent International,210273,"3,506.50",Information Management Services,SME,Programme Expenditure,,
UK Statistics Family,Office for National Statistics,16/09/2021,Exp - Purchase Of Goods/Services - Contractors,Strategy And Architecture,Talent International,210273,"18,720.00",Information Management Services,SME,Programme Expenditure,,
UK Statistics Family,Office for National Statistics,16/09/2021,Exp - Purchase Of Goods/Services - Contractors,IT Applications,Talent International,210273,"14,399.76",Information Management Services,SME,Programme Expenditure,,
UK Statistics Family,Office for National Statistics,16/09/2021,Exp - Short-Term Contract & Agency Staff - Full Cost,Social Surveys Division,Talent International,210273,"1,038.33",Information Management Services,SME,Programme Expenditure,,
UK Statistics Family,Office for National Statistics,16/09/2021,Exp - Purchase Of Goods/Services - Contractors,Digital Publishing,SmartSourcing Ltd,210275,"24,741.70",Information Management Services,SME,Programme Expenditure,,
UK Statistics Family,Office for National Statistics,16/09/2021,Exp - Short-Term Contract & Agency Staff - Full Cost,Recruitment ,SmartSourcing Ltd,210275,"1,584.19",Information Management Services,SME,Programme Expenditure,,
UK Statistics Family,Office for National Statistics,16/09/2021,Exp - Short-Term Contract & Agency Staff - Full Cost,Strategy And Organisational Effectiveness,SmartSourcing Ltd,210275,"9,592.32",Information Management Services,SME,Programme Expenditure,,
UK Statistics Family,Office for National Statistics,16/09/2021,Exp - Purchase Of Goods/Services - Contractors,Data Capability,Parity Resources Limited,210278,"4,355.26",Information Management Services,Large,Programme Expenditure,,
UK Statistics Family,Office for National Statistics,16/09/2021,Exp - Short-Term Contract & Agency Staff - Full Cost,Census CCS Data Collection,Parity Resources Limited,210278,"6,867.82",Information Management Services,Large,Programme Expenditure,,
UK Statistics Family,Office for National Statistics,16/09/2021,Exp - Purchase Of Goods/Services - Contractors,Digital Publishing,Parity Resources Limited,210278,"20,523.00",Information Management Services,Large,Programme Expenditure,,
UK Statistics Family,Office for National Statistics,16/09/2021,Exp - Purchase Of Goods/Services - Contractors,International Trade And Transactions,Parity Resources Limited,210278,"12,816.00",Information Management Services,Large,Programme Expenditure,,
UK Statistics Family,Office for National Statistics,16/09/2021,Exp - Purchase Of Goods/Services - Contractors,Business Statistics Transformation,Parity Resources Limited,210278,"8,971.20",Information Management Services,Large,Programme Expenditure,,
UK Statistics Family,Office for National Statistics,16/09/2021,EXP - PURCHASE OF GOODS/SERVICES -  NON IT CONTRACTUAL PAYMENTS,Data Collection Service,Good Things Foundation,210280,"69,671.26",Census Assisted Digital Services,SME,Programme Expenditure,,
UK Statistics Family,Office for National Statistics,17/09/2021,Exp - Short-Term Contract & Agency Staff - Full Cost,Prices Division,Concept Information Technology Ltd T/A Concept Resourcing,210288,"6,037.95",Information Management Services,Large,Programme Expenditure,,
UK Statistics Family,Office for National Statistics,17/09/2021,Exp - Short-Term Contract & Agency Staff - Full Cost,Prices Division,Concept Information Technology Ltd T/A Concept Resourcing,210288,"8,830.47",Information Management Services,Large,Programme Expenditure,,
UK Statistics Family,Office for National Statistics,17/09/2021,Exp - Short-Term Contract & Agency Staff - Full Cost,Prices Division,Concept Information Technology Ltd T/A Concept Resourcing,210288,"23,275.10",Information Management Services,Large,Programme Expenditure,,
UK Statistics Family,Office for National Statistics,17/09/2021,Exp - Purchase Of Goods/Services - Contractors,Security Advisory,Certes Computing Ltd,210290,"15,852.48",Information Management Services,SME,Programme Expenditure,,
UK Statistics Family,Office for National Statistics,17/09/2021,Exp - Purchase Of Goods/Services - Contractors,Digital Delivery,Certes Computing Ltd,210290,"10,216.07",Information Management Services,SME,Programme Expenditure,,
UK Statistics Family,Office for National Statistics,17/09/2021,EXP - PURCHASE OF GOODS/SERVICES -  NON IT CONTRACTUAL PAYMENTS,Covid Infection Survey,HH Associates Ltd,210293,"32,534.52",Print and Post Services,SME,Programme Expenditure,,
UK Statistics Family,Office for National Statistics,17/09/2021,Exp - Purchase Of Goods/Services - IT Contractual Services,Digital Publishing,Methods Business & Digital Technology Ltd,210294,"47,376.00",Information Management Services,Large,Programme Expenditure,,
UK Statistics Family,Office for National Statistics,17/09/2021,Exp - Permanent UK Staff - PRP Voucher Payments,ONS Corporate Funds,Edenred (UK Group) Limited,210298,"27,050.00",Performance Reward Vouchers,Large,Programme Expenditure,,
UK Statistics Family,Office for National Statistics,20/09/2021,Exp - Short-Term Contract & Agency Staff - Full Cost,INTEGRATED DATA STRATEGY AND DELIVERY,SmartSourcing Ltd,210526,"4,176.00",Information Management Services,SME,Programme Expenditure,,
UK Statistics Family,Office for National Statistics,20/09/2021,Exp - Purchase Of Goods/Services - Contractors,Data Architecture,SmartSourcing Ltd,210526,"21,576.96",Information Management Services,SME,Programme Expenditure,,
UK Statistics Family,Office for National Statistics,20/09/2021,Postage,Interviewer Support,Banner Group Ltd,210529,"33,000.00",Stationery,SME,Programme Expenditure,,
UK Statistics Family,Office for National Statistics,20/09/2021,Exp - Purchase Of Goods/Services - IT Contractual Services,IT Operations,E Synergy Solutions,210533,"73,560.00",Information Management Services,SME,Programme Expenditure,,
UK Statistics Family,Office for National Statistics,20/09/2021,Telecoms,IT Operations,Bt Global Services,210536,"47,707.24",Telecommunications,Large,Programme Expenditure,,
UK Statistics Family,Office for National Statistics,21/09/2021,Exp - Purchase Of Goods/Services - IT Contractual Services,Strategy And Architecture,E Synergy Solutions,210543,"18,000.00",Information Management Services,SME,Programme Expenditure,,
UK Statistics Family,Office for National Statistics,21/09/2021,Exp - Purchase Of Goods/Services - IT Contractual Services,Strategy And Architecture,E Synergy Solutions,210543,"14,400.00",Information Management Services,SME,Programme Expenditure,,
UK Statistics Family,Office for National Statistics,21/09/2021,Exp - Purchase Of Goods/Services - IT Contractual Services,Tech Delivery Legacy Sp,E Synergy Solutions,210543,"82,782.00",Information Management Services,SME,Programme Expenditure,,
UK Statistics Family,Office for National Statistics,21/09/2021,Exp - Purchase Of Goods/Services - IT Contractual Services,Tech Delivery Next Gen IT And Infrastructure,E Synergy Solutions,210543,"7,920.00",Information Management Services,SME,Programme Expenditure,,
UK Statistics Family,Office for National Statistics,21/09/2021,Stationery,Lodgecard,Royal Bank of Scotland,210551,"1,041.43",Multiple Procurement Card Purchases  - Stationery ,Large,Programme Expenditure,,
UK Statistics Family,Office for National Statistics,21/09/2021,Other Goods And Services,GPC,Royal Bank of Scotland,210551,"28,910.12",Multiple Procurement Card Purchases - other goods/services  ,Large,Programme Expenditure,,
UK Statistics Family,Office for National Statistics,21/09/2021,Exp - Short-Term Contract & Agency Staff - Full Cost,Data Architecture,Malikshaw Interim & Executive,210554,"4,067.12",Information Management Services,SME,Programme Expenditure,,
UK Statistics Family,Office for National Statistics,21/09/2021,Exp - Purchase Of Goods/Services - Contractors,Tech Delivery Legacy Sp,Malikshaw Interim & Executive,210554,"14,439.10",Information Management Services,SME,Programme Expenditure,,
UK Statistics Family,Office for National Statistics,21/09/2021,Exp - Purchase Of Goods/Services - Contractors,Digital Delivery,Malikshaw Interim & Executive,210554,"15,120.00",Information Management Services,SME,Programme Expenditure,,
UK Statistics Family,Office for National Statistics,21/09/2021,Exp - Purchase Of Goods/Services - Incentive Payments,Covid Infection Survey,Sodexo Motivation Solutions U.K. ltd,210557,"57,096.00",Survey Response Incentive Vouchers,Large,Programme Expenditure,,
UK Statistics Family,Office for National Statistics,21/09/2021,End User Software And Hardware,IT Operations,Cdw Limited,210559,"41,482.30",Software Licenses,Large,Programme Expenditure,,
UK Statistics Family,Office for National Statistics,22/09/2021,Exp - Purchase Of Goods/Services - Contractors,Best Practice And Impact,Certes Computing Ltd,210568,"16,813.20",Information Management Services,SME,Programme Expenditure,,
UK Statistics Family,Office for National Statistics,22/09/2021,Exp - Purchase Of Goods/Services - Contractors,IT Applications,Certes Computing Ltd,210568,"13,678.63",Information Management Services,SME,Programme Expenditure,,
UK Statistics Family,Office for National Statistics,22/09/2021,Exp - Purchase Of Goods/Services - Contractors,Data As A Service,Certes Computing Ltd,210568,"17,421.60",Information Management Services,SME,Programme Expenditure,,
UK Statistics Family,Office for National Statistics,22/09/2021,Surveys,International Trade And Transactions,Chamber of Shipping Ltd,210570,"26,640.00",Data Acquisition,SME,Programme Expenditure,,
UK Statistics Family,Office for National Statistics,22/09/2021,End User Software And Hardware,Migration Statistics,Computacenter (Uk) Limited,210571,241.86,Software Licenses,Large,Programme Expenditure,,
UK Statistics Family,Office for National Statistics,22/09/2021,End User Software And Hardware,IT Operations,Computacenter (Uk) Limited,210571,"41,405.51",Software Licenses,Large,Programme Expenditure,,
UK Statistics Family,Office for National Statistics,22/09/2021,Exp - Short-Term Contract & Agency Staff - Full Cost,Census CCS Data Collection,Talent International,210578,"1,114.79",Information Management Services,SME,Programme Expenditure,,
UK Statistics Family,Office for National Statistics,22/09/2021,Exp - Short-Term Contract & Agency Staff - Full Cost,HALE,Talent International,210578,277.42,Information Management Services,SME,Programme Expenditure,,
UK Statistics Family,Office for National Statistics,22/09/2021,Exp - Short-Term Contract & Agency Staff - Full Cost,International Trade And Transactions,Talent International,210578,"3,701.96",Information Management Services,SME,Programme Expenditure,,
UK Statistics Family,Office for National Statistics,22/09/2021,Exp - Short-Term Contract & Agency Staff - Full Cost,Strategy And Engagement,Talent International,210578,102.3,Information Management Services,SME,Programme Expenditure,,
UK Statistics Family,Office for National Statistics,22/09/2021,Exp - Purchase Of Goods/Services - Contractors,INTEGRATED DATA STRATEGY AND DELIVERY,Talent International,210578,"10,350.00",Information Management Services,SME,Programme Expenditure,,
UK Statistics Family,Office for National Statistics,22/09/2021,Exp - Short-Term Contract & Agency Staff - Full Cost,Data Architecture,Talent International,210578,"2,236.09",Information Management Services,SME,Programme Expenditure,,
UK Statistics Family,Office for National Statistics,22/09/2021,Exp - Short-Term Contract & Agency Staff - Full Cost,Data Architecture,Talent International,210578,"3,433.40",Information Management Services,SME,Programme Expenditure,,
UK Statistics Family,Office for National Statistics,22/09/2021,Exp - Purchase Of Goods/Services - Contractors,Tech Delivery Legacy Sp,Talent International,210578,"15,600.00",Information Management Services,SME,Programme Expenditure,,
UK Statistics Family,Office for National Statistics,22/09/2021,Exp - Short-Term Contract & Agency Staff - Full Cost,Data As A Service,Talent International,210578,127.87,Information Management Services,SME,Programme Expenditure,,
UK Statistics Family,Office for National Statistics,22/09/2021,Exp - Short-Term Contract & Agency Staff - Full Cost,Interviewer Management TU,Talent International,210578,548.99,Information Management Services,SME,Programme Expenditure,,
UK Statistics Family,Office for National Statistics,22/09/2021,End User Software And Hardware,IT Operations,Cdw Limited,210581,"53,224.66",Software Licenses,Large,Programme Expenditure,,
UK Statistics Family,Office for National Statistics,22/09/2021,Non IT Maintenance And Hire,Property Services,Eaton Limited,210582,"28,995.00",Rental Charges,SME,Programme Expenditure,,
UK Statistics Family,Office for National Statistics,22/09/2021,Other Goods And Services,Security Advisory,Cabinet Office,210585,"79,211.15",Security Vetting Services,Large,Programme Expenditure,,
UK Statistics Family,Office for National Statistics,24/09/2021,FM Contract Payments,Vinci Payments,Vinci Construction UK Limited,210783,"508,818.41",Facilities Mangement Services,Large,Programme Expenditure,,
UK Statistics Family,Office for National Statistics,24/09/2021,Postage,Survey Processing Centre,DHL Parcel Ltd,210786,"41,851.99",Postage,Large,Programme Expenditure,,
UK Statistics Family,Office for National Statistics,24/09/2021,Exp - Purchase Of Goods/Services - Contractors,Business Architecture,La International,210787,"8,721.90",Information Management Services,SME,Programme Expenditure,,
UK Statistics Family,Office for National Statistics,24/09/2021,Exp - Purchase Of Goods/Services - Contractors,Business Architecture,La International,210787,"3,588.30",Information Management Services,SME,Programme Expenditure,,
UK Statistics Family,Office for National Statistics,24/09/2021,Exp - Purchase Of Goods/Services - Contractors,Testing,La International,210787,"6,567.90",Information Management Services,SME,Programme Expenditure,,
UK Statistics Family,Office for National Statistics,24/09/2021,Exp - Purchase Of Goods/Services - Contractors,Testing,La International,210787,"5,633.17",Information Management Services,SME,Programme Expenditure,,
UK Statistics Family,Office for National Statistics,24/09/2021,Exp - Purchase Of Goods/Services - Contractors,HALE,La International,210787,"2,413.75",Information Management Services,SME,Programme Expenditure,,
UK Statistics Family,Office for National Statistics,24/09/2021,Exp - Purchase Of Goods/Services - Contractors,Digital Publishing,La International,210787,"12,815.52",Information Management Services,SME,Programme Expenditure,,
UK Statistics Family,Office for National Statistics,24/09/2021,Exp - Purchase Of Goods/Services - Contractors,Data Architecture,La International,210787,"6,792.18",Information Management Services,SME,Programme Expenditure,,
UK Statistics Family,Office for National Statistics,24/09/2021,Exp - Purchase Of Goods/Services - Contractors,Data Architecture,La International,210787,"3,524.22",Information Management Services,SME,Programme Expenditure,,
UK Statistics Family,Office for National Statistics,24/09/2021,Exp - Purchase Of Goods/Services - Contractors,Data Architecture,La International,210787,"3,524.22",Information Management Services,SME,Programme Expenditure,,
UK Statistics Family,Office for National Statistics,24/09/2021,Exp - Purchase Of Goods/Services - Contractors,Strategy And Architecture,La International,210787,"13,635.54",Information Management Services,SME,Programme Expenditure,,
UK Statistics Family,Office for National Statistics,24/09/2021,Exp - Purchase Of Goods/Services - Contractors,Tech Delivery Data As A Platform,La International,210787,"8,009.69",Information Management Services,SME,Programme Expenditure,,
UK Statistics Family,Office for National Statistics,24/09/2021,Exp - Purchase Of Goods/Services - Contractors,Tech Delivery Data As A Platform,La International,210787,"20,812.14",Information Management Services,SME,Programme Expenditure,,
UK Statistics Family,Office for National Statistics,24/09/2021,Exp - Purchase Of Goods/Services - Contractors,Digital Delivery,La International,210787,"10,047.24",Information Management Services,SME,Programme Expenditure,,
UK Statistics Family,Office for National Statistics,24/09/2021,Exp - Purchase Of Goods/Services - Contractors,Data As A Service,La International,210787,"15,218.32",Information Management Services,SME,Programme Expenditure,,
UK Statistics Family,Office for National Statistics,24/09/2021,Exp - Purchase Of Goods And Services Consultants,Consultancy Management,Deloitte,210789,"241,180.80",Consultancy,Large,Programme Expenditure,,
UK Statistics Family,Office for National Statistics,24/09/2021,Exp - Short-Term Contract & Agency Staff - Full Cost,Census CCS Data Collection,Talent International,210798,239.58,Information Management Services,SME,Programme Expenditure,,
UK Statistics Family,Office for National Statistics,24/09/2021,Exp - Short-Term Contract & Agency Staff - Full Cost,Census CCS Data Collection,Talent International,210798,68.11,Information Management Services,SME,Programme Expenditure,,
UK Statistics Family,Office for National Statistics,24/09/2021,Exp - Purchase Of Goods/Services - Contractors,Digital Publishing,Talent International,210798,"13,260.00",Information Management Services,SME,Programme Expenditure,,
UK Statistics Family,Office for National Statistics,24/09/2021,Exp - Short-Term Contract & Agency Staff - Full Cost,Recruitment ,Talent International,210798,"9,669.40",Information Management Services,SME,Programme Expenditure,,
UK Statistics Family,Office for National Statistics,24/09/2021,Exp - Short-Term Contract & Agency Staff - Full Cost,Data Architecture,Talent International,210798,"1,117.24",Information Management Services,SME,Programme Expenditure,,
UK Statistics Family,Office for National Statistics,24/09/2021,Exp - Short-Term Contract & Agency Staff - Full Cost,Social Surveys Division,Talent International,210798,"4,279.38",Information Management Services,SME,Programme Expenditure,,
UK Statistics Family,Office for National Statistics,24/09/2021,Exp - Purchase Of Goods/Services - IT Contractual Services,Tech Delivery Next Gen IT And Infrastructure,Diegesis Limited,210800,"19,380.00",Information Management Services,Large,Programme Expenditure,,
UK Statistics Family,Office for National Statistics,24/09/2021,Exp - Purchase Of Goods/Services - IT Contractual Services,IT Applications,Diegesis Limited,210800,"121,920.00",Information Management Services,Large,Programme Expenditure,,
UK Statistics Family,Office for National Statistics,27/09/2021,EXP - PURCHASE OF GOODS/SERVICES -  NON IT CONTRACTUAL PAYMENTS,Census CCS Data Collection,Granby Marketing Services Ltd,210999,"39,370.56",Stoarage and Distribution Services,Large,Programme Expenditure,,
UK Statistics Family,Office for National Statistics,28/09/2021,Print & Post,Ask Business Services,APS Group,211011,401.07,Print and Post Services,Large,Programme Expenditure,,
UK Statistics Family,Office for National Statistics,28/09/2021,Print & Post,Social Survey Transformation Newport,APS Group,211011,"14,030.65",Print and Post Services,Large,Programme Expenditure,,
UK Statistics Family,Office for National Statistics,28/09/2021,Print & Post,Social Survey Transformation Newport,APS Group,211011,"-11,464.82",Print and Post Services,Large,Programme Expenditure,,
UK Statistics Family,Office for National Statistics,28/09/2021,Print & Post,Social Surveys Division,APS Group,211011,"154,585.53",Print and Post Services,Large,Programme Expenditure,,
UK Statistics Family,Office for National Statistics,28/09/2021,EXP - PURCHASE OF GOODS/SERVICES -  NON IT CONTRACTUAL PAYMENTS,Covid Infection Survey,HH Associates Ltd,211016,"75,891.49",Print and Post Services,SME,Programme Expenditure,,
UK Statistics Family,Office for National Statistics,28/09/2021,Surveys,Crime Statistics,Kantar UK Ltd,211017,"261,230.20",Statistical Services,Large,Programme Expenditure,,
UK Statistics Family,Office for National Statistics,28/09/2021,Exp - Short-Term Contract & Agency Staff - Full Cost,Census CCS Data Collection,Talent International,211019,"7,068.92",Information Management Services,SME,Programme Expenditure,,
UK Statistics Family,Office for National Statistics,28/09/2021,Exp - Short-Term Contract & Agency Staff - Full Cost,Census CCS Data Collection,Talent International,211019,9.86,Information Management Services,SME,Programme Expenditure,,
UK Statistics Family,Office for National Statistics,28/09/2021,Exp - Short-Term Contract & Agency Staff - Full Cost,International Trade And Transactions,Talent International,211019,620.71,Information Management Services,SME,Programme Expenditure,,
UK Statistics Family,Office for National Statistics,28/09/2021,Exp - Purchase Of Goods/Services - Contractors,International Trade And Transactions,Talent International,211019,"9,072.00",Information Management Services,SME,Programme Expenditure,,
UK Statistics Family,Office for National Statistics,28/09/2021,Exp - Short-Term Contract & Agency Staff - Full Cost,Data Architecture,Talent International,211019,"2,393.19",Information Management Services,SME,Programme Expenditure,,
UK Statistics Family,Office for National Statistics,28/09/2021,Exp - Purchase Of Goods/Services - Contractors,Data Architecture,Talent International,211019,"15,504.00",Information Management Services,SME,Programme Expenditure,,
UK Statistics Family,Office for National Statistics,28/09/2021,Exp - Purchase Of Goods/Services - Contractors,Tech Delivery Legacy Sp,Talent International,211019,"18,460.80",Information Management Services,SME,Programme Expenditure,,
UK Statistics Family,Office for National Statistics,28/09/2021,Exp - Purchase Of Goods/Services - Contractors,Digital Delivery,Talent International,211019,"9,072.00",Information Management Services,SME,Programme Expenditure,,
UK Statistics Family,Office for National Statistics,28/09/2021,Exp - Short-Term Contract & Agency Staff - Full Cost,Social Surveys Division,Talent International,211019,"2,810.42",Information Management Services,SME,Programme Expenditure,,
UK Statistics Family,Office for National Statistics,28/09/2021,Fixtures & Fittings At Cost - Additions,Property Newport,Orange box Limited,211023,"109,733.82",Office Furniture,SME,Programme Expenditure,,
UK Statistics Family,Office for National Statistics,28/09/2021,Exp - Purchase Of Goods/Services - Contractors,Business Architecture,Parity Resources Limited,211024,"4,558.02",Information Management Services,Large,Programme Expenditure,,
UK Statistics Family,Office for National Statistics,28/09/2021,Exp - Short-Term Contract & Agency Staff - Full Cost,Census CCS Data Collection,Parity Resources Limited,211024,764.64,Information Management Services,Large,Programme Expenditure,,
UK Statistics Family,Office for National Statistics,28/09/2021,Exp - Purchase Of Goods/Services - Contractors,Programme Delivery,Parity Resources Limited,211024,"3,310.50",Information Management Services,Large,Programme Expenditure,,
UK Statistics Family,Office for National Statistics,28/09/2021,Exp - Purchase Of Goods/Services - Contractors,Covid Infection Survey,Parity Resources Limited,211024,"4,790.08",Information Management Services,Large,Programme Expenditure,,
UK Statistics Family,Office for National Statistics,28/09/2021,Exp - Purchase Of Goods/Services - Contractors,Digital Publishing,Parity Resources Limited,211024,"4,580.70",Information Management Services,Large,Programme Expenditure,,
UK Statistics Family,Office for National Statistics,28/09/2021,Exp - Short-Term Contract & Agency Staff - Full Cost,Recruitment ,Parity Resources Limited,211024,"1,465.20",Information Management Services,Large,Programme Expenditure,,
UK Statistics Family,Office for National Statistics,28/09/2021,Exp - Short-Term Contract & Agency Staff - Full Cost,Recruitment ,Parity Resources Limited,211024,732.6,Information Management Services,Large,Programme Expenditure,,
UK Statistics Family,Office for National Statistics,28/09/2021,Exp - Short-Term Contract & Agency Staff - Full Cost,Data Architecture,Parity Resources Limited,211024,"2,197.80",Information Management Services,Large,Programme Expenditure,,
UK Statistics Family,Office for National Statistics,28/09/2021,Exp - Purchase Of Goods/Services - Contractors,Data Architecture,Parity Resources Limited,211024,"3,592.56",Information Management Services,Large,Programme Expenditure,,
UK Statistics Family,Office for National Statistics,28/09/2021,Exp - Purchase Of Goods/Services - Contractors,CLOUD ARCHITECTURE,Parity Resources Limited,211024,"3,430.50",Information Management Services,Large,Programme Expenditure,,
UK Statistics Family,Office for National Statistics,28/09/2021,Exp - Purchase Of Goods/Services - Contractors,Strategy And Architecture,Parity Resources Limited,211024,"8,118.90",Information Management Services,Large,Programme Expenditure,,
UK Statistics Family,Office for National Statistics,28/09/2021,EXP - PURCHASE OF GOODS/SERVICES -  NON IT CONTRACTUAL PAYMENTS,Census CCS Data Collection,Adecco UK Limited,211025,"116,292.00",Census People Services Contractual,SME,Programme Expenditure,,
UK Statistics Family,Office for National Statistics,01/09/2021,Exp - Purchase Of Goods/Services - Incentive Payments,Covid Infection Survey,Sodexo Motivation Solutions U.K. ltd,30002976,"28,884.00",Survey Response Incentive Vouchers,Large,Programme Expenditure,,
UK Statistics Family,Office for National Statistics,03/09/2021,Exp - Purchase Of Goods/Services - Incentive Payments,Covid Infection Survey,Sodexo Motivation Solutions U.K. ltd,30002979,"77,572.67",Survey Response Incentive Vouchers,Large,Programme Expenditure,,
UK Statistics Family,Office for National Statistics,03/09/2021,Exp - Purchase Of Goods/Services - Incentive Payments,Covid Infection Survey,Sodexo Motivation Solutions U.K. ltd,30002982,"1,201,044.18",Survey Response Incentive Vouchers,Large,Programme Expenditure,,
UK Statistics Family,Office for National Statistics,08/09/2021,Exp - Purchase Of Goods/Services - Incentive Payments,Covid Infection Survey,Sodexo Motivation Solutions U.K. ltd,30002984,"57,073.43",Survey Response Incentive Vouchers,Large,Programme Expenditure,,
UK Statistics Family,Office for National Statistics,09/09/2021,Exp - Purchase Of Goods/Services - Incentive Payments,Covid Infection Survey,Sodexo Motivation Solutions U.K. ltd,30002991,"2,317,981.22",Survey Response Incentive Vouchers,Large,Programme Expenditure,,
UK Statistics Family,Office for National Statistics,10/09/2021,Exp - Purchase Of Goods/Services - Incentive Payments,Covid Infection Survey,Sodexo Motivation Solutions U.K. ltd,30002992,"145,984.80",Survey Response Incentive Vouchers,Large,Programme Expenditure,,
UK Statistics Family,Office for National Statistics,14/09/2021,Exp - Purchase Of Goods/Services - Incentive Payments,Covid Infection Survey,Sodexo Motivation Solutions U.K. ltd,30002997,"26,867.99",Survey Response Incentive Vouchers,Large,Programme Expenditure,,
UK Statistics Family,Office for National Statistics,17/09/2021,Exp - Purchase Of Goods/Services - Incentive Payments,Covid Infection Survey,Sodexo Motivation Solutions U.K. ltd,30003007,"2,325,162.70",Survey Response Incentive Vouchers,Large,Programme Expenditure,,
UK Statistics Family,Office for National Statistics,24/09/2021,Exp - Purchase Of Goods/Services - Incentive Payments,Covid Infection Survey,Sodexo Motivation Solutions U.K. ltd,30003015,"2,025,672.41",Survey Response Incentive Vouchers,Large,Programme Expenditure,,
UK Statistics Family,Office for National Statistics,24/09/2021,Surveys,Covid Infection Survey,IQVIA Limited,30003016,"21,120,000.00",Statistical Services,Large,Programme Expenditure,,
UK Statistics Family,Office for National Statistics,27/09/2021,Exp - Purchase Of Goods/Services - Incentive Payments,Covid Infection Survey,Sodexo Motivation Solutions U.K. ltd,30003020,"29,356.81",Survey Response Incentive Vouchers,Large,Programme Expenditure,,
UK Statistics Family,Office for National Statistics,29/09/2021,EXP - PURCHASE OF GOODS/SERVICES -  NON IT CONTRACTUAL PAYMENTS,Data Collection Service,Leidos Innovations UK Limited,30003023,"1,704,599.62",Questionnaire Management,Large,Programme Expenditure,,
UK Statistics Family,Office for National Statistics,29/09/2021,EXP - PURCHASE OF GOODS/SERVICES -  NON IT CONTRACTUAL PAYMENTS,Data Collection Service,HH Associates Ltd,30003024,"70,261.25",Print and Post Services,SME,Programme Expenditure,,
UK Statistics Family,Office for National Statistics,30/09/2021,Exp - Purchase Of Goods And Services Consultants,Data Science Campus,United Nations Foundation,30003029,"50,000.00",Data Acquisition,SME,Programme Expenditure,,
UK Statistics Family,Office for National Statistics,30/09/2021,Exp - Purchase Of Goods/Services - Incentive Payments,Covid Infection Survey,Sodexo Motivation Solutions U.K. ltd,30003032,"2,104,756.45",Survey Response Incentive Vouchers,Large,Programme Expenditure,,
UK Statistics Family,Office for National Statistics,30/09/2021,Hosting,Corporate Centre,CTS (Cloud Technology Solutions Ltd),30003033,"147,422.20",DST Infrastructure Preparation,Large,Programme Expenditure,,
UK Statistics Family,Office for National Statistics,30/09/2021,Hosting,Corporate Centre,CTS (Cloud Technology Solutions Ltd),30003033,"124,009.76",DST Infrastructure Preparation,Large,Programme Expenditure,,
UK Statistics Family,Office for National Statistics,30/09/2021,Exp - Purchase Of Goods/Services - Other ICT Costs Software,Security Operations,Hut Six Security Limited,30003034,"88,152.00",Training and Educational Services,SME,Programme Expenditure,,
,,,,,,,"46,250,582.39",,,
